Workbook

Sheet Modèle (hidden)
A1: Randonnées Année 2017
A2: Date | B2: Randonnée | D2: Distance | F2: Dénivelé + | G2: Durée | H2: Participant | J2: Météo
A4: Dernière
A73: Nombre de Randonnées | C73: =COUNTA(A4:A70) -> 1 | D73: Dont: | F73: 0 | G73: en Raquettes | I73: Moyenne générale
A74: Le Plus | C74: =MAX(D4:D71) -> 0 | E74: =MAX(F4:F71) -> 0 | G74: =MAX(G4:G71) -> 0 | H74: =MAX(H4:H71) -> 0 | I74: =C77/G77/24 -> 
A75: Le Moins | C75: =MIN(D4:D71) -> 0 | E75: =MIN(F4:F71) -> 0 | G75: =MIN(G4:G71) -> 0 | H75: =MIN(H4:H71) -> 0
A76: Moyenne | C76: =AVERAGE(D4:D71) ->  | E76: =AVERAGE(F4:F71) ->  | G76: =AVERAGE(G4:G71) ->  | H76: =AVERAGE(H4:H71) ->  | I76: =SUM(H4:H71) -> 0
A77: Cumul | C77: =SUM(D4:D71) -> 0 | E77: =SUM(F4:F71) -> 0 | G77: =SUM(G4:G71) -> 0
A78: Bernard Heck bheck@live.fr 06 41 32 09 56 | C78: Nombre de Restaurant | F78: 0 | G78: Nombre de Pique Nique | J78: 0

Sheet Rando
A1: Randonnées Année 2017
A2: Date | B2: Randonnée | D2: Distance | F2: Dénivelé + | G2: Durée | H2: Participant | J2: Météo
A4: 2017-01-06 | B4: Murs,Le lac St André , Le lac des Peres, Gallettes, Seloge, Ret | D4: 8.8 | F4: 56 | G4: 0.09722222222 | H4: 7
A5: 2017-01-09 | B5: Lac, Les Fromagets, Lac froment, Surprise Yolande, La Palud, St André | D5: 11.2 | F5: 204 | G5: 0.1388888889 | H5: 5
A6: 2017-01-16 | B6: Belisay, Saint Jeoire, Myans Ret | D6: 11.2 | F6: 115 | G6: 0.125 | H6: 6
A7: 2017-01-20 | B7: Chemin de Blardet, la Ratte, Les Pélerins, Maretaz, Les Drouilly, Ret. | D7: 11.1 | F7: 65 | G7: 0.125 | H7: 5
A8: 2017-01-27 | B8: Col du Granier, Tencovaz, Col du Granier | D8: 6 | F8: 181 | G8: 0.1041666667 | H8: 5
A9: 2017-01-30 | B9: Murs,Le lac St André , Le lac clair, les Abymes, Maraville Rt des Mortes | D9: 10.8 | F9: 61 | G9: 0.1180555556 | H9: 2
A10: 2017-02-02 | B10: La coche, Direction Col du Granier, Piste de ski du Granier, La coche | D10: 5.8 | F10: 280 | G10: 0.1076388889 | H10: 3
A11: 2017-02-06 | B11: La corne, Blardet Lac des peres, Les Pélerins , Les Drouilly | D11: 9.7 | F11: 65 | G11: 0.1076388889 | H11: 6
A12: 2017-02-10 | B12: Col du Granier, Tencovaz, Col du Granier ,"superbe" | D12: 6.1 | F12: 192 | G12: 0.1076388889 | H12: 3
A13: 2017-02-13 | B13: Les déserts d'Entremonts , Col du Mollard | D13: 6 | F13: 305 | G13: 0.1041666667 | H13: 5
A14: 2017-02-10 | B14: Murs, Chapa, Lac Clair, Blardet, RN , Murs | D14: 10.9 | F14: 61 | G14: 0.1111111111 | H14: 2
A15: 2017-02-13 | B15: Murs, Lac St André, La redoute, Myans, Seloge, La foret, Murs | D15: 10.8 | F15: 135 | G15: 0.1076388889 | H15: 2
A16: 2017-02-17 | B16: Les deserts dEntremont le grand Carroz, Col du Mollard | D16: 6.7 | F16: 432 | G16: 0.1041666667 | H16: 5
A17: 2017-02-20 | B17: F1, sentier des hauts de Chignin par Montlevin, Retour | D17: 8.4 | F17: 423 | G17: 0.1180555556 | H17: 4
A18: 2017-02-24 | B18: chemin des abymes, Myans, chocolaterie Eden, guimauve | D18: 8.3 | F18: 100 | G18: 0.1041666667 | H18: 4
A19: 2017-02-17 | B19: Murs, La Foret, Bois musart, Champlong , Retour | D19: 7.8 | F19: 35 | G19: 0.08333333333 | H19: 2
A20: 2017-02-27 | B20: Super U Francin, circuit des vignes Chignin , Retour | D20: 11 | F20: 236 | G20: 0.125 | H20: 7
A21: 2017-03-03 | B21: La Foret, Murs,La Corne, Cugnet, Drouilly | D21: 11.1 | F21: 107 | G21: 0.125 | H21: 10
A22: 2017-03-10 | B22: Les déserts d'Entremonts , Col du Mollard | D22: 6 | F22: 305 | G22: 0.1041666667 | H22: 4
A23: 2017-03-13 | B23: Depart Super U Pontcharra Tour des Lones | D23: 9.5 | F23: 28 | G23: 0.125 | H23: 8
A24: 2017-03-17 | B24: Les Marches , Chignin Gare,Chacusart , lac des Peres,Ret. | D24: 10.5 | F24: 178 | G24: 0.125 | H24: 8
A25: 2017-03-20 | B25: St André, La Palud, Lachat, St André | D25: 7.6 | F25: 186 | G25: 0.1215277778 | H25: 7
A26: 2017-03-24 | B26: Seloge, Les fontanettes, Myans, Retour idem | D26: 11 | F26: 75 | G26: 0.1354166667 | H26: 4
A27: 2017-03-27 | B27: La Foret, Le golf, Chignin, Belissay , ZA | D27: 11.7 | F27: 78 | G27: 0.1270833333 | H27: 8
A28: 2017-03-31 | B28: Seloge Myans, lac des Pères, Pierre hachée, Les Fromagets, | D28: 9.6 | F28: 104 | G28: 0.125 | H28: 7
A29: 2017-04-03 | B29: St André, Martinons, Lac Sablé, Lac Froment, Ret | D29: 9.3 | F29: 241 | G29: 0.1354166667 | H29: 7
A30: 2017-04-07 | B30: St André, la Ratte, Apremont, Pierre Grosse, Ret. | D30: 9.8 | F30: 128 | G30: 0.1111111111 | H30: 5
A31: 2017-04-10 | B31: St André, Lachat, Lac Noir, La palud, Dt André | D31: 12.1 | F31: 438 | G31: 0.1506944444 | H31: 4
A32: 2017-04-14 | B32: Chapa, La Fourchette, La cuiller, Les delaisses de l'isere, Ret | D32: 11.5 | F32: 328 | G32: 0.125 | H32: 8
A33: 2017-04-18 | B33: St André, La palud, Lachat, La Ratte, St André | D33: 11 | F33: 289 | G33: 0.125 | H33: 5
A34: 2017-04-21 | B34: Super U Francin, Tormery, Le Villard, Tormery, Ret. | D34: 8.1 | F34: 178 | G34: 0.1131944444 | H34: 8
A35: 2017-04-24 | B35: Le Boyat, Puygros, Le Bois, Ret. | D35: 6.7 | F35: 250 | G35: 0.08333333333 | H35: 2
A36: 2017-05-02 | B36: St André, Lachat, Maison en pierre, Apremont, Ret. | D36: 7.5 | F36: 284 | G36: 0.1048611111 | H36: 5
A37: 2017-05-05 | B37: St Pierre de Soucy, Soucy, Ret,X, Tour du lac de Ste Helene | D37: 13.2 | F37: 240 | G37: 0.15625 | H37: 9
A38: 2017-05-08 | B38: St André, Le devin, Maison en pierre, Lachat, La Palud, les Darbe | D38: 10.1 | F38: 288 | G38: 0.1284722222 | H38: 6
A39: 2017-05-15 | B39: La Foret, Le Bon de Loge, Murs, Retour | D39: 11.7 | F39: 81 | G39: 0.1194444444 | H39: 7
A40: 2017-05-19 | B40: St André, La Palud, Pervenche, Martinon, Lachat, Froment, Ret. | D40: 8.5 | F40: 282 | G40: 0.1041666667 | H40: 3
A41: 2017-05-22 | B41: St Georges, Parcours santé Ste Marie, La Baleine, Muguet, Ret. | D41: 8.3 | F41: 167 | G41: 0.1125 | H41: 5
A42: 2017-05-29 | B42: Les Deserts, Pointe de Cochette rocher de l'Outheran, X , Ret | D42: 6.8 | F42: 638 | G42: 0.1354166667 | H42: 4
A43: 2017-06-02 | B43: St André, Lachat, Apremont, Ret. | D43: 9 | F43: 100 | G43: 0.1145833333 | H43: 6
A44: 2017-06-05 | B44: Lac St André, Croix de St André, Lachat, La palud, Lac Froment | D44: 11.4 | F44: 290 | G44: 0.1388888889 | H44: 2
A45: 2017-06-09 | B45: Chapa, Bellecombette, Bellecombe, Vieux clocher | D45: 8.2 | F45: 445 | G45: 0.1354166667 | H45: 6
A46: 2017-06-12 | B46: St André, La Palud, Lachat, Lac Froment, St André | D46: 7.2 | F46: 162 | G46: 0.1041666667 | H46: 7
A47: 2017-06-16 | B47: Cascades d'Alloix | D47: 5 | F47: 363 | G47: 0.09375 | H47: 8
A48: 2017-06-23 | B48: St François de Salle, Chal. de la Platte,le Creux de lachat, X, Ret | D48: 17.4 | F48: 624 | G48: 0.25 | H48: 6
A49: 2017-06-30 | B49: Apremont, cascade du pichut, Le Villard, Ret, | D49: 7.9 | F49: 227 | G49: 0.09722222222 | H49: 6
A50: 2017-07-07 | B50: Prodin, Lac des Grenouilles, Col de la Perche, Refuge Grande Mont. | D50: 13.5 | F50: 915 | G50: 0.2604166667 | H50: 4
A51: 2017-07-13 | B51: Col de St Saturnin, Pralongan, Piste d'envol x, Ret.(Vacherin) | D51: 10.5 | F51: 610 | G51: 0.21875 | H51: 6
A52: 2017-07-21 | B52: La Trinité, Col de Cochette, Tours de Montmayeur,X,Ret. (Myrtille) | D52: 10.4 | F52: 550 | G52: 0.1979166667 | H52: 6
A53: 2017-07-27 | B53: Ecole en Bauges, Col d'Orgeval, x , Patous, Ret par la piste | D53: 13.8 | F53: 900 | G53: 0.2604166667 | H53: 7
A54: 2017-08-04 | B54: Col du Granier, Pointe de la Gorgeat, Mont Joigny, X, Ret. | D54: 8 | F54: 430 | G54: 0.1666666667 | H54: 5
A55: 2017-08-18 | B55: Marocaz,Rochefort,Manettaz, roche du Guet, X , La thuile, Ret | D55: 11.3 | F55: 871 | G55: 0.2083333333 | H55: 6
A56: 2017-08-25 | B56: Pré d'Orcel, Col , croix et chalet de l'Alpe, L'Alpette, Col Belles Ombres | D56: 14.5 | F56: 890 | G56: 0.2916666667 | H56: 4
A57: 2017-09-08 | B57: Lac St Claire, Villaroux, Tour de Montmayeur, X , Résistants, Ret. | D57: 16.8 | F57: 674 | G57: 0.25 | H57: 6
A58: 2017-09-11 | B58: Lac St André, Croix de St André, "La Chevre", Lachat, Lac Froment | D58: 10.7 | F58: 310 | G58: 0.1472222222 | H58: 5
A59: 2017-09-15 | B59: La Feclaz (1°) , La croix du Nivollet, X , Belvedere du Revard ,Clafoutis | D59: 10 | F59: 412 | G59: 0.1597222222 | H59: 8
A60: 2017-09-18 | B60: les Drouilly, Myans, Chacuzard, Poisy, Crincaillé | D60: 9.4 | F60: 74 | G60: 0.09861111111 | H60: 7
A61: 2017-09-22 | B61: Château Richard, x , Croix du Signal , Ret. | D61: 11 | F61: 561 | G61: 0.2083333333 | H61: 7
A62: 2017-09-25 | B62: Lac St André, Lachat, ret. Par la Chevre | D62: 10 | F62: 292 | G62: 0.125 | H62: 7
A63: 2017-09-29 | B63: Cimetiere, Croix Verpi, St André, Les fromagets Lac St André | D63: 11.8 | F63: 100 | G63: 0.1458333333 | H63: 3
A64: 2017-10-02 | B64: St André, Rte de Bellecombe, Chataigne, Lachat, Lac Froment | D64: 8 | F64: 230 | G64: 0.125 | H64: 3
A65: 2017-10-06 | B65: Barby, Bellevarde,Fées, Rousset, Mt St Michel,x,Stele du maquis,Ret. | D65: 12.5 | F65: 913 | G65: 5h30 | H65: 3
A66: 2017-10-09 | B66: La Foret, Murs, Bisplaine, le Lac, Crinquaillé | D66: 11.2 | F66: 58 | G66: 0.125 | H66: 10
A67: 2017-10-13 | B67: Le Monal, Barrage du Clou, X , Mélèzes, le Monal | D67: 11 | F67: 548 | G67: 0.2083333333 | H67: 6
A68: 2017-10-16 | B68: Chapa, la Cuiller, Chapa, Gisèle | D68: 8 | F68: 190 | G68: 0.09375 | H68: 6
A69: 2017-10-20 | B69: Montée et Descente le long du funiculaire de St Hilaire | D69: 5.6 | F69: 800 | G69: 0.1666666667 | H69: 6
A70: 2017-10-23 | B70: SuperU, le Vivier, Mont Ronjou, St Anthelme, Ret. | D70: 11.4 | F70: 265 | G70: 0.1333333333 | H70: 3
A85: Nombre de Randonnées | C85: =COUNTA(B4:B82) -> 67 | D85: Dont: | F85: =NbCoulParCouleur(B4:B82,4) ->  | G85: en Raquettes | I85: Moyenne générale
A86: Le Plus | C86: =MAX(D4:D83) -> 17.4 | E86: =MAX(F4:F83) -> 915 | G86: =MAX(G4:G83) -> 0.2916666667 | H86: =MAX(H4:H83) -> 10 | I86: =C89/G89/24 -> 3.009150526
A87: Le Moins | C87: =MIN(D4:D83) -> 5 | E87: =MIN(F4:F83) -> 28 | G87: =MIN(G4:G83) -> 0.08333333333 | H87: =MIN(H4:H83) -> 2
A88: Moyenne | C88: =AVERAGE(D4:D83) -> 9.81641791 | E88: =AVERAGE(F4:F83) -> 308.1044776 | G88: =AVERAGE(G4:G83) -> 0.1379840067 | H88: =AVERAGE(H4:H83) -> 5.462686567 | I88: =SUM(H4:H83) -> 366
A89: Cumul | C89: =SUM(D4:D83) -> 657.7 | E89: =SUM(F4:F83) -> 20643 | G89: =SUM(G4:G83) -> 9.106944444
A90: Bernard Heck bheck@live.fr 06 41 32 09 56 | C90: Nombre de Restaurant | F90: =NbCoulParCouleur(B4:B82,33) ->  | G90: Nombre de Pique Nique | J90: =NbCoulParCouleur(B4:B82,5) -> 

Sheet Sommaire
A1: Prénoms | B1: André | C1: Andrée | D1: Bernard | E1: Christiane | F1: Daniel | G1: Dany | H1: Gianna | I1: Gisèle | J1: Marie | K1: Yolande | L1: Chris2. | M1: Michel | N1: Martine | O1: Colette | P1: Marie-F. | Q1: Monique | R1: Josiane | S1: Invité | T1: Alix | U1: MichelT | V1: Total
A2: 2017
A4: 2017-01-06 | D4: 1 | E4: 1 | G4: 1 | H4: 1 | I4: 1 | J4: 1 | P4: 1 | V4: =SUM(B4:U4) -> 7
A5: 2017-01-09 | D5: 1 | G5: 1 | H5: 1 | I5: 1 | J5: 1 | V5: 5
A6: 2017-01-16 | B6: 1 | C6: 1 | G6: 1 | H6: 1 | I6: 1 | J6: 1 | V6: 6
A7: 2017-01-20 | B7: 1 | C7: 1 | G7: 1 | I7: 1 | J7: 1 | V7: 5
A8: 2017-01-27 | C8: 1 | D8: 1 | I8: 1 | J8: 1 | K8: 1 | V8: 5
A9: 2017-01-30 | G9: 1 | H9: 1 | V9: 2
A10: 2017-02-02 | D10: 1 | J10: 1 | K10: 1 | V10: 3
A11: 2017-02-06 | B11: 1 | C11: 1 | D11: 1 | G11: 1 | I11: 1 | K11: 1 | V11: 6
A12: 2017-02-10 | D12: 1 | I12: 1 | K12: 1 | V12: 3
A13: 2017-02-13 | D13: 1 | E13: 1 | I13: 1 | J13: 1 | K13: 1 | V13: 5
A14: 2017-02-10 | G14: 1 | H14: 1 | V14: 2
A15: 2017-02-13 | G15: 1 | H15: 1 | V15: 2
A16: 2017-02-17 | D16: 1 | I16: 1 | J16: 1 | K16: 1 | U16: 1 | V16: 5
A17: 2017-02-20 | B17: 1 | D17: 1 | E17: 1 | K17: 1 | V17: 4
A18: 2017-02-24 | D18: 1 | J18: 1 | K18: 1 | Q18: 1 | V18: 4
A19: 2017-02-17 | G19: 1 | H19: 1 | V19: 2
A20: 2017-02-27 | B20: 1 | D20: 1 | E20: 1 | G20: 1 | I20: 1 | J20: 1 | K20: 1 | V20: 7
A21: 2017-03-03 | B21: 1 | C21: 1 | D21: 1 | I21: 1 | J21: 1 | K21: 1 | L21: 1 | M21: 1 | O21: 1 | Q21: 1 | V21: 10
A22: 2017-03-10 | C22: 1 | D22: 1 | I22: 1 | K22: 1 | V22: 4
A23: 2017-03-13 | B23: 1 | D23: 1 | I23: 1 | J23: 1 | K23: 1 | L23: 1 | M23: 1 | Q23: 1 | V23: 8
A24: 2017-03-17 | B24: 1 | C24: 1 | G24: 1 | I24: 1 | J24: 1 | K24: 1 | L24: 1 | M24: 1 | V24: 8
A25: 2017-03-20 | B25: 1 | C25: 1 | D25: 1 | J25: 1 | K25: 1 | L25: 1 | M25: 1 | V25: 7
A26: 2017-03-24 | C26: 1 | G26: 1 | H26: 1 | K26: 1 | V26: 4
A27: 2017-03-27 | B27: 1 | C27: 1 | D27: 1 | I27: 1 | J27: 1 | K27: 1 | L27: 1 | M27: 1 | V27: 8
A28: 2017-03-31 | C28: 1 | D28: 1 | G28: 1 | I28: 1 | K28: 1 | L28: 1 | M28: 1 | V28: 7
A29: 2017-04-03 | B29: 1 | C29: 1 | D29: 1 | E29: 1 | I29: 1 | K29: 1 | S29: 1 | V29: 7
A30: 2017-04-07 | B30: 1 | D30: 1 | E30: 1 | G30: 1 | I30: 1 | V30: 5
A31: 2017-04-10 | D31: 1 | E31: 1 | I31: 1 | P31: 1 | V31: 4
A32: 2017-04-14 | B32: 1 | D32: 1 | E32: 1 | G32: 1 | I32: 1 | K32: 1 | P32: 1 | U32: 1 | V32: 8
A33: 2017-04-18 | D33: 1 | E33: 1 | H33: 1 | I33: 1 | K33: 1 | V33: 5
A34: 2017-04-21 | D34: 1 | G34: 1 | H34: 1 | J34: 1 | K34: 1 | L34: 1 | M34: 1 | S34: 1 | V34: 8
A35: 2017-04-24 | J35: 1 | K35: 1 | V35: 2
A36: 2017-05-02 | B36: 1 | D36: 1 | E36: 1 | G36: 1 | J36: 1 | V36: =SUM(B36:U36) -> 5
A37: 2017-05-05 | B37: 1 | C37: 1 | D37: 1 | E37: 1 | G37: 1 | I37: 1 | J37: 1 | P37: 1 | Q37: 1 | V37: 9
A38: 2017-05-08 | B38: 1 | C38: 1 | D38: 1 | J38: 1 | P38: 1 | U38: 1 | V38: 6
A39: 2017-05-15 | B39: 1 | D39: 1 | E39: 1 | I39: 1 | K39: 1 | N39: 1 | P39: 1 | V39: 7
A40: 2017-05-19 | D40: 1 | I40: 1 | K40: 1 | V40: 3
A41: 2017-05-22 | D41: 1 | E41: 1 | I41: 1 | K41: 1 | U41: 1 | V41: 5
A42: 2017-05-29 | D42: 1 | I42: 1 | K42: 1 | U42: 1 | V42: 4
A43: 2017-06-02 | B43: 1 | C43: 1 | G43: 1 | I43: 1 | P43: 1 | U43: 1 | V43: 6
A44: 2017-06-05 | D44: 1 | U44: 1 | V44: 2
A45: 2017-06-09 | B45: 1 | C45: 1 | D45: 1 | I45: 1 | J45: 1 | K45: 1 | V45: 6
A46: 2017-06-12 | D46: 1 | G46: 1 | I46: 1 | J46: 1 | K46: 1 | P46: 1 | U46: 1 | V46: 7
A47: 2017-06-16 | B47: 1 | C47: 1 | D47: 1 | E47: 1 | I47: 1 | J47: 1 | K47: 1 | U47: 1 | V47: 8
A48: 2017-06-23 | B48: 1 | C48: 1 | D48: 1 | K48: 1 | P48: 1 | U48: 1 | V48: 6
A49: 2017-06-30 | B49: 1 | C49: 1 | D49: 1 | I49: 1 | K49: 1 | P49: 1 | V49: 6
A50: 2017-07-07 | D50: 1 | I50: 1 | K50: 1 | P50: 1 | V50: 4
A51: 2017-07-13 | B51: 1 | C51: 1 | D51: 1 | I51: 1 | K51: 1 | P51: 1 | V51: 6
A52: 2017-07-21 | B52: 1 | C52: 1 | D52: 1 | I52: 1 | J52: 1 | K52: 1 | V52: 6
A53: 2017-07-27 | B53: 1 | C53: 1 | D53: 1 | I53: 1 | J53: 1 | K53: 1 | U53: 1 | V53: 7
A54: 2017-08-04 | I54: 1 | J54: 1 | K54: 1 | P54: 1 | U54: 1 | V54: 5
A55: 2017-08-18 | D55: 1 | J55: 1 | K55: 1 | P55: 1 | S55: 1 | U55: 1 | V55: 6
A56: 2017-08-25 | C56: 1 | D56: 1 | I56: 1 | K56: 1 | V56: 4
A57: 2017-09-08 | C57: 1 | D57: 1 | K57: 1 | P57: 1 | R57: 1 | U57: 1 | V57: 6
A58: 2017-09-11 | D58: 1 | K58: 1 | P58: 1 | S58: 2 | V58: 5
A59: 2017-09-15 | B59: 1 | C59: 1 | D59: 1 | I59: 1 | J59: 1 | K59: 1 | P59: 1 | R59: 1 | V59: 8
A60: 2017-09-18 | B60: 1 | D60: 1 | G60: 1 | I60: 1 | J60: 1 | K60: 1 | P60: 1 | V60: 7
A61: 2017-09-22 | B61: 1 | C61: 1 | I61: 1 | J61: 1 | K61: 1 | P61: 1 | R61: 1 | V61: 7
A62: 2017-09-25 | C62: 1 | G62: 1 | H62: 1 | I62: 1 | J62: 1 | K62: 1 | P62: 1 | V62: 7
A63: 2017-09-29 | C63: 1 | I63: 1 | J63: 1 | V63: 3
A64: 2017-10-02 | D64: 1 | I64: 1 | J64: 1 | V64: 3
A65: 2017-10-06 | D65: 1 | I65: 1 | J65: 1 | V65: 3
A66: 2017-10-09 | B66: 1 | C66: 1 | E66: 1 | I66: 1 | J66: 1 | K66: 1 | P66: 1 | S66: 2 | T66: 1 | V66: 10
A67: 2017-10-13 | B67: 1 | C67: 1 | D67: 1 | I67: 1 | J67: 1 | K67: 1 | V67: 6
A68: 2017-10-16 | B68: 1 | C68: 1 | D68: 1 | E68: 1 | I68: 1 | K68: 1 | V68: =SUM(B68:U68) -> 6
A69: 2017-10-20 | C69: 1 | D69: 1 | I69: 1 | J69: 1 | K69: 1 | T69: 1 | V69: 6
A70: 2017-10-23 | D70: 1 | J70: 1 | T70: 1 | V70: 3
V71: 0
V72: 0
V73: 0
V74: 0
V75: 0
V76: 0
V77: 0
V78: 0
V79: 0
V80: 0
V81: 0
B82: =SUM(B4:B80) -> 31 | C82: =SUM(C4:C80) -> 32 | D82: =SUM(D4:D80) -> 52 | E82: =SUM(E4:E80) -> 16 | F82: =SUM(F4:F69) -> 0 | G82: =SUM(G4:G80) -> 22 | H82: 11 | I82: 48 | J82: 38 | K82: 48 | L82: 7 | M82: 7 | N82: 1 | O82: 1 | P82: 21 | Q82: 4 | R82: =SUM(R4:R80) -> 3 | S82: =SUM(S4:S80) -> 7 | T82: =SUM(T4:T80) -> 3 | U82: =SUM(U4:U80) -> 14 | V82: 366
V83: 0
A84: TOTAL | B84: Randonnée: | E84: =COUNTA(A4:A80) -> 67 | H84: Moyenne Randonneurs: | L84: =V82/E84 -> 5.462686567 | O84: Arrondi à : | V84: =L84 -> 5.462686567
N97: Ajouter une feuille, Cliquez ici, n'utilisez pas le raccourci clavier
A102: Feuille Modèle, clic droit: Afficher
B107: Réinitialiser la colonne Total
B110: Renommer les feuilles à l'identique du prénom de la ligne 1: point accent espace
B113: Quand vous double liquerez sur une cellule avec un 1 la copie sera faite sans l'enregistrement
B116: Pour plus de sécurité, l'action se déclenche au double clic de la cellule contenant un 1
B121: Activer pour enregistrer la feuille avant de double cliquer sur le 1 les enregistrements seront effectués dans le même dossier que ce classeur

Sheet André
A1: Randonnées André Année 2017
A2: Date | B2: Randonnée | D2: Distance | F2: Dénivelé + | G2: Durée | H2: Participant | J2: Météo
A3: a
A4: 2017-01-16 | B4: Belisay, Saint Jeoire, Myans Ret | D4: 11.2 | F4: 115 | G4: 0.125 | H4: 6
A5: 2017-01-20 | B5: Chemin de Blardet, la Ratte, Les Pélerins, Maretaz, Les Droully, Ret. | D5: 11.1 | F5: 65 | G5: 0.125 | H5: 5
A6: 2017-02-06 | B6: La corne, Blardet Lac des peres, Les Pélerins , Les Drouilly | D6: 9.7 | F6: 65 | G6: 0.1076388889 | H6: 6
A7: 2017-02-20 | B7: F1, sentier des hauts de Chignin par Montlevin, Retour | D7: 8.4 | F7: 423 | G7: 0.1180555556 | H7: 4
A8: 2017-02-27 | B8: Super U Francin, circuit des vignes Chignin , Retour | D8: 11 | F8: 236 | G8: 0.125 | H8: 7
A9: 2017-03-03 | B9: La Foret, Murs,La Corne, Cugnet, Drouilly | D9: 11.1 | F9: 107 | G9: 0.125 | H9: 10
A10: 2017-03-13 | B10: Depart Super U Pontcharra Tour des Lones | D10: 9.5 | F10: 28 | G10: 0.125 | H10: 8
A11: 2017-03-17 | B11: Les Marches , Chignin Gare,Chacusart , lac des Peres,Ret. | D11: 10.5 | F11: 178 | G11: 0.125 | H11: 8
A12: 2017-03-20 | B12: St André, La Palud, Lachat, St André | D12: 7.6 | F12: 186 | G12: 0.1215277778 | H12: 7
A13: 2017-03-27 | B13: La Foret, Le golf, Chignin, Belissay , ZA | D13: 11.7 | F13: 78 | G13: 0.1270833333 | H13: 8
A14: 2017-04-03 | B14: St André, Martinons, Lac Sablé, Lac Froment, Ret | D14: 9.3 | F14: 241 | G14: 0.1354166667 | H14: 7
A15: 2017-04-07 | B15: St André, la Ratte, Apremont, Pierre Grosse, Ret. | D15: 9.8 | F15: 128 | G15: 0.1111111111 | H15: 5
A16: 2017-04-14 | B16: Chapa, La Fourchette, La cuiller, Les delaisses de l'isere, Ret | D16: 11.5 | F16: 328 | G16: 0.125 | H16: 8
A17: 2017-05-02 | B17: St André, Lachat, Maison en pierre, Apremont, Ret. | D17: 7.5 | F17: 284 | G17: 0.1048611111 | H17: 5
A18: 2017-05-05 | B18: St Pierre de Soucy, Soucy, Ret,X | D18: 9.6 | F18: 233 | G18: 0.1055555556 | H18: 8
A19: 2017-05-08 | B19: St André, Le devin, Maison en pierre, Lachat, La Palud, les Darbe | D19: 10.1 | F19: 288 | G19: 0.1284722222 | H19: 6
A20: 2017-05-15 | B20: La Foret, Le Bon de Loge, Murs, Retour | D20: 11.7 | F20: 81 | G20: 0.1194444444 | H20: 7
A21: 2017-06-02 | B21: St André, Lachat, Apremont, Ret. | D21: 9 | F21: 100 | G21: 0.1145833333 | H21: 6
A22: 2017-06-09 | B22: Chapa, Bellecombette, Bellecombe, Vieux clocher | D22: 8.2 | F22: 445 | G22: 0.1354166667 | H22: 6
A23: 2017-06-16 | B23: Cascades d'Alloix | D23: 5 | F23: 363 | G23: 0.09375 | H23: 8
A24: 2017-06-23 | B24: St François de Salle, Chal. de la Platte,le Creux de lachat, X, Ret | D24: 17.4 | F24: 624 | G24: 0.25 | H24: 6
A25: 2017-06-30 | B25: Apremont, cascade du pichut, Le Villard, Ret, | D25: 7.9 | F25: 227 | G25: 0.09722222222 | H25: 6
A26: 2017-07-13 | B26: Col de St Saturnin, Pragondran, Piste d'envol x, Ret.(Vacherin) | D26: 10.5 | F26: 610 | G26: 0.21875 | H26: 6
A27: 2017-07-21 | B27: La Trinité, Col de Cochette, Tours de Montmayeur,X,Ret. (Myrtille) | D27: 10.4 | F27: 550 | G27: 0.1979166667 | H27: 6
A28: 2017-07-27 | B28: Ecole en Bauges, Col d'Orgeval, x , Patous, Ret par la piste | D28: 13.8 | F28: 900 | G28: 0.2604166667 | H28: 7
A29: 2017-09-15 | B29: La Feclaz (1°) , La croix du Nivollet, X , Belvedere du Revard ,Clafoutis | D29: 10 | F29: 412 | G29: 0.1597222222 | H29: 8
A30: 2017-09-18 | B30: les Drouilly, Myans, Chacuzard, Poisy, Crincaillé | D30: 9.4 | F30: 74 | G30: 0.09861111111 | H30: 7
A31: 2017-09-22 | B31: Château Richard, x , Croix du Signal , Ret. | D31: 11 | F31: 561 | G31: 0.2083333333 | H31: 7
A32: 2017-10-09 | B32: La Foret, Murs, Bisplaine, le Lac, Crinquaillé | D32: 11.2 | F32: 58 | G32: 0.125 | H32: 10
A33: 2017-10-13 | B33: Le Monal, Barrage du Clou, X , Mélèzes, le Monal | D33: 11 | F33: 548 | G33: 0.2083333333 | H33: 6
A34: 2017-10-16 | B34: Chapa, la Cuiller, Chapa, Gisèle | D34: 8 | F34: 190 | G34: 0.09375 | H34: 6
A35: Dernière
A45: Nombre de Randonnées | C45: =COUNTA(B4:B43) -> 31 | D45: Dont: | F45: =NbCoulParCouleur(B4:B75,4) -> 0 | G45: en Raquettes | I45: Moyenne générale
A46: Le Plus | C46: =MAX(D4:D43) -> 17.4 | E46: =MAX(F4:F43) -> 900 | G46: =MAX(G4:G43) -> 0.2604166667 | H46: =MAX(H4:H43) -> 10 | I46: =C49/G49/24 -> 3.03234111
A47: Le Moins | C47: =MIN(D4:D43) -> 5 | E47: =MIN(F4:F43) -> 28 | G47: =MIN(G4:G43) -> 0.09375 | H47: =MIN(H4:H43) -> 4
A48: Moyenne | C48: =AVERAGE(D4:D43) -> 10.13225806 | E48: =AVERAGE(F4:F43) -> 281.483871 | G48: =AVERAGE(G4:G43) -> 0.1392249104 | H48: =AVERAGE(H4:H43) -> 6.774193548 | I48: =SUM(H4:H43) -> 210
A49: Cumul | C49: =SUM(D4:D43) -> 314.1 | E49: =SUM(F4:F43) -> 8726 | G49: =SUM(G4:G43) -> 4.315972222
A50: Bernard Heck bheck@live.fr 06 41 32 09 56 | C50: Nombre de Restaurant | F50: =NbCoulParCouleur(B4:B58,33) ->  | G50: Nombre de Pique Nique | J50: =NbCoulParCouleur(B4:B75,5) -> 

Sheet Andrée
A1: Randonnées Andrée Année 2017
A2: Date | B2: Randonnée | D2: Distance | F2: Dénivelé + | G2: Durée | H2: Participant | J2: Météo
A4: 2017-01-16 | B4: Belisay, Saint Jeoire, Myans Ret | D4: 11.2 | F4: 115 | G4: 0.125 | H4: 6
A5: 2017-01-20 | B5: Chemin de Blardet, la Ratte, Les Pélerins, Maretaz, Les Droully, Ret. | D5: 11.1 | F5: 65 | G5: 0.125 | H5: 5
A6: 2017-01-27 | B6: Col du Granier, Tencovaz, Col du Granier | D6: 6 | F6: 181 | G6: 0.1041666667 | H6: 5
A7: 2017-02-06 | B7: La corne, Blardet Lac des peres, Les Pélerins , Les Drouilly | D7: 9.7 | F7: 65 | G7: 0.1076388889 | H7: 6
A8: 2017-03-03 | B8: La Foret, Murs,La Corne, Cugnet, Drouilly | D8: 11.1 | F8: 107 | G8: 0.125 | H8: 10
A9: 2017-03-10 | B9: Les déserts d'Entremonts , Col du Mollard | D9: 6 | F9: 305 | G9: 0.1041666667 | H9: 4
A10: 2017-03-17 | B10: Les Marches , Chignin Gare,Chacusart , lac des Peres,Ret. | D10: 10.5 | F10: 178 | G10: 0.125 | H10: 8
A11: 2017-03-20 | B11: St André, La Palud, Lachat, St André | D11: 7.6 | F11: 186 | G11: 0.1215277778 | H11: 7
A12: 2017-03-24 | B12: Seloge, Les fontanettes, Myans, Retour idem | D12: 11 | F12: 75 | G12: 0.1354166667 | H12: 4
A13: 2017-03-27 | B13: La Foret, Le golf, Chignin, Belissay , ZA | D13: 11.7 | F13: 78 | G13: 0.1270833333 | H13: 8
A14: 2017-03-31 | B14: Seloge Myans, lac des Pères, Pierre hachée, Les Fromagets, | D14: 9.6 | F14: 104 | G14: 0.125 | H14: 7
A15: 2017-04-03 | B15: St André, Martinons, Lac Sablé, Lac Froment, Ret | D15: 9.3 | F15: 241 | G15: 0.1354166667 | H15: 7
A16: 2017-05-05 | B16: St Pierre de Soucy, Soucy, Ret, X | D16: 9.6 | F16: 233 | G16: 0.1055555556 | H16: 8
A17: 2017-05-08 | B17: St André, Le devin, Maison en pierre, Lachat, La Palud, les Darbe | D17: 10.1 | F17: 288 | G17: 0.1284722222 | H17: 6
A18: 2017-06-02 | B18: St André, Lachat, Apremont, Ret. | D18: 9 | F18: 100 | G18: 0.1145833333 | H18: 6
A19: 2017-06-09 | B19: Chapa, Bellecombette, Bellecombe, Vieux clocher | D19: 8.2 | F19: 445 | G19: 0.1354166667 | H19: 6
A20: 2017-06-16 | B20: Cascades d'Alloix | D20: 5 | F20: 363 | G20: 0.09375 | H20: 8
A21: 2017-06-23 | B21: St François de Salle, Chal. de la Platte,le Creux de lachat, X, Ret | D21: 17.4 | F21: 624 | G21: 0.25 | H21: 6
A22: 2017-06-30 | B22: Apremont, cascade du pichut, Le Villard, Ret, | D22: 7.9 | F22: 227 | G22: 0.09722222222 | H22: 6
A23: 2017-07-13 | B23: Col de St Saturnin, Pragondran, Piste d'envol x, Ret.(Vacherin) | D23: 10.5 | F23: 610 | G23: 0.21875 | H23: 6
A24: 2017-07-21 | B24: La Trinité, Col de Cochette, Tours de Montmayeur,X,Ret. (Myrtille) | D24: 10.4 | F24: 550 | G24: 0.1979166667 | H24: 6
A25: 2017-07-27 | B25: Ecole en Bauges, Col d'Orgeval, x , Patous, Ret par la piste | D25: 13.8 | F25: 900 | G25: 0.2604166667 | H25: 7
A26: 2017-08-25 | B26: Pré d'Orcel, Col , croix et chalet de l'Alpe, L'Alpette, Col Belles Ombres | D26: 14.5 | F26: 890 | G26: 0.2916666667 | H26: 4
A27: 2017-09-08 | B27: Lac St Claire, Villaroux, Tour de Montmayeur, X , Résistants, Ret. | D27: 16.8 | F27: 674 | G27: 0.25 | H27: 6
A28: 2017-09-15 | B28: La Feclaz (1°) , La croix du Nivollet, X , Belvedere du Revard ,Clafoutis | D28: 10 | F28: 412 | G28: 0.1597222222 | H28: 8
A29: 2017-09-22 | B29: Château Richard, x , Croix du Signal , Ret. | D29: 11 | F29: 561 | G29: 0.2083333333 | H29: 7
A30: 2017-09-25 | B30: Lac St André, Lachat, ret. Par la Chevre | D30: 10 | F30: 292 | G30: 0.125 | H30: 7
A31: 2017-09-29 | B31: Cimetiere, Croix Verpi, St André, Les fromagets Lac St André | D31: 11.8 | F31: 100 | G31: 0.1458333333 | H31: 3
A32: 2017-10-09 | B32: La Foret, Murs, Bisplaine, le Lac, Crinquaillé | D32: 11.2 | F32: 58 | G32: 0.125 | H32: 10
A33: 2017-10-13 | B33: Le Monal, Barrage du Clou, X , Mélèzes, le Monal | D33: 11 | F33: 548 | G33: 0.2083333333 | H33: 6
A34: 2017-10-16 | B34: Chapa, la Cuiller, Chapa, Gisèle | D34: 8 | F34: 190 | G34: 0.09375 | H34: 6
A35: 2017-10-20 | B35: Montée et Descente le long du funiculaire de St Hilaire | D35: 5.6 | F35: 800 | G35: 0.1666666667 | H35: 6
A36: Dernière
A52: Nombre de Randonnées | C52: =COUNTA(B4:B50) -> 32 | D52: Dont: | F52: =NbCoulParCouleur(B4:B70,4) ->  | G52: en Raquettes | I52: Moyenne générale
A53: Le Plus | C53: =MAX(D4:D50) -> 17.4 | E53: =MAX(F4:F50) -> 900 | G53: =MAX(G4:G50) -> 0.2916666667 | H53: =MAX(H4:H50) -> 10 | I53: =C56/G56/24 -> 2.813496052
A54: Le Moins | C54: =MIN(D4:D50) -> 5 | E54: =MIN(F4:F50) -> 58 | G54: =MIN(G4:G50) -> 0.09375 | H54: =MIN(H4:H50) -> 3
A55: Moyenne | C55: =AVERAGE(D4:D50) -> 10.20625 | E55: =AVERAGE(F4:F50) -> 330.15625 | G55: =AVERAGE(G4:G50) -> 0.1511501736 | H55: =AVERAGE(H4:H50) -> 6.40625 | I55: =SUM(H4:H50) -> 205
A56: Cumul | C56: =SUM(D4:D50) -> 326.6 | E56: =SUM(F4:F50) -> 10565 | G56: =SUM(G4:G50) -> 4.836805556
A57: Bernard Heck bheck@live.fr 06 41 32 09 56 | C57: Nombre de Restaurant | F57: =NbCoulParCouleur(B4:B53,33) ->  | G57: Nombre de Pique Nique | J57: =NbCoulParCouleur(B4:B70,5) -> 

Sheet Bernard
A1: Randonnées Bernard Année 2017
A2: Date | B2: Randonnée | D2: Distance | F2: Dénivelé + | G2: Durée | H2: Participant | J2: Météo
A4: 2017-01-06 | B4: Murs,Le lac St André , Le lac des Peres, Gallettes, Seloge, Ret | D4: 8.8 | F4: 56 | G4: 0.09722222222 | H4: 7
A5: 2017-01-09 | B5: Lac, Les Fromagets, Lac froment, Surprise Yolande, La Palud, St André | D5: 11.2 | F5: 204 | G5: 0.1388888889 | H5: 5
A6: 2017-01-27 | B6: Col du Granier, Tencovaz, Col du Granier | D6: 6 | F6: 181 | G6: 0.1041666667 | H6: 5
A7: 2017-02-02 | B7: La coche, Direction Col du Granier, Piste de ski du Granier, La coche | D7: 5.8 | F7: 280 | G7: 0.1076388889 | H7: 3
A8: 2017-02-06 | B8: La corne, Blardet Lac des peres, Les Pélerins , Les Drouilly | D8: 9.7 | F8: 65 | G8: 0.1076388889 | H8: 6
A9: 2017-02-10 | B9: Col du Granier, Tencovaz, Col du Granier ,"superbe" | D9: 6.1 | F9: 192 | G9: 0.1076388889 | H9: 3
A10: 2017-02-13 | B10: Les déserts d'Entremonts , Col du Mollard | D10: 6 | F10: 305 | G10: 0.1041666667 | H10: 5
A11: 2017-02-17 | B11: Les deserts dEntremont le grand Carroz, Col du Mollard | D11: 6.7 | F11: 432 | G11: 0.1041666667 | H11: 5
A12: 2017-02-20 | B12: F1, sentier des hauts de Chignin par Montlevin, Retour | D12: 8.4 | F12: 423 | G12: 0.1180555556 | H12: 4
A13: 2017-02-24 | B13: chemin des abymes, Myans, chocolaterie Eden, guimauve | D13: 8.3 | F13: 100 | G13: 0.1041666667 | H13: 4
A14: 2017-02-27 | B14: Super U Francin, circuit des vignes Chignin , Retour | D14: 11 | F14: 236 | G14: 0.125 | H14: 7
A15: 2017-03-03 | B15: La Foret, Murs,La Corne, Cugnet, Drouilly | D15: 11.1 | F15: 107 | G15: 0.125 | H15: 10
A16: 2017-03-10 | B16: Les déserts d'Entremonts , Col du Mollard | D16: 6 | F16: 305 | G16: 0.1041666667 | H16: 4
A17: 2017-03-13 | B17: Depart Super U Pontcharra Tour des Lones | D17: 9.5 | F17: 28 | G17: 0.125 | H17: 8
A18: 2017-03-20 | B18: St André, La Palud, Lachat, St André | D18: 7.6 | F18: 186 | G18: 0.1215277778 | H18: 7
A19: 2017-03-27 | B19: La Foret, Le golf, Chignin, Belissay , ZA | D19: 11.7 | F19: 78 | G19: 0.1270833333 | H19: 8
A20: 2017-03-31 | B20: Seloge Myans, lac des Pères, Pierre hachée, Les Fromagets, | D20: 9.6 | F20: 104 | G20: 0.125 | H20: 7
A21: 2017-04-03 | B21: St André, Martinons, Lac Sablé, Lac Froment, Ret | D21: 9.3 | F21: 241 | G21: 0.1354166667 | H21: 7
A22: 2017-04-07 | B22: St André, la Ratte, Apremont, Pierre Grosse, Ret. | D22: 9.8 | F22: 128 | G22: 0.1111111111 | H22: 5
A23: 2017-04-10 | B23: St André, Lachat, Lac Noir, La palud, St André | D23: 12.1 | F23: 438 | G23: 0.1506944444 | H23: 4
A24: 2017-04-14 | B24: Chapa, La Fourchette, La cuiller, Les delaisses de l'isere, Ret | D24: 11.5 | F24: 328 | G24: 0.125 | H24: 8
A25: 2017-04-18 | B25: St André, La palud, Lachat, La Ratte, St André | D25: 11 | F25: 289 | G25: 0.125 | H25: 5
A26: 2017-04-21 | B26: Super U Francin, Tormery, Le Villard, Tormery, Ret. | D26: 8.1 | F26: 178 | G26: 0.1131944444 | H26: 8
A27: 2017-05-02 | B27: St André, Lachat, Maison en pierre, Apremont, Ret. | D27: 7.5 | F27: 284 | G27: 0.1048611111 | H27: 5
A28: 2017-05-05 | B28: St Pierre de Soucy, Soucy, Ret,X, Tour du lac de Ste Helene | D28: 13.2 | F28: 240 | G28: 0.15625 | H28: 9
A29: 2017-05-08 | B29: St André, Le devin, Maison en pierre, Lachat, La Palud, les Darbe | D29: 10.1 | F29: 288 | G29: 0.1284722222 | H29: 6
A30: 2017-05-15 | B30: La Foret, Le Bon de Loge, Murs, Retour | D30: 11.7 | F30: 81 | G30: 0.1194444444 | H30: 7
A31: 2017-05-19 | B31: St André, La Palud, Pervenche, Martinon, Lachat, Froment, Ret. | D31: 8.5 | F31: 282 | G31: 0.1041666667 | H31: 3
A32: 2017-05-22 | B32: St Georges, Parcours santé Ste Marie, La Baleine, Muguet, Ret. | D32: 8.3 | F32: 167 | G32: 0.1125 | H32: 5
A33: 2017-05-29 | B33: Les Deserts, Pointe de Cochette, rocher de l'Outheran, X , Ret | D33: 6.8 | F33: 638 | G33: 0.1354166667 | H33: 4
A34: 2017-06-05 | B34: Lac St André, Croix de St André, Lachat, La palud, Lac Froment | D34: 11.4 | F34: 290 | G34: 0.1388888889 | H34: 2
A35: 2017-06-09 | B35: Chapa, Bellecombette, Bellecombe, Vieux clocher | D35: 8.2 | F35: 445 | G35: 0.1354166667 | H35: 6
A36: 2017-06-12 | B36: St André, La Palud, Lachat, Lac Froment, St André | D36: 7.2 | F36: 162 | G36: 0.1041666667 | H36: 7
A37: 2017-06-16 | B37: Cascades d'Alloix | D37: 5 | F37: 363 | G37: 0.09375 | H37: 8
A38: 2017-06-23 | B38: St François de Salle, Chal. de la Platte,le Creux de lachat, X, Ret | D38: 17.4 | F38: 624 | G38: 0.25 | H38: 6
A39: 2017-06-30 | B39: Apremont, cascade du pichut, Le Villard, Ret, | D39: 7.9 | F39: 227 | G39: 0.09722222222 | H39: 6
A40: 2017-07-07 | B40: Prodin, Lac des Grenouilles, Col de la Perche, Refuge Grande Mont. | D40: 13.5 | F40: 915 | G40: 0.2604166667 | H40: 4
A41: 2017-07-13 | B41: Col de St Saturnin, Pragondran, Piste d'envol x, Ret.(Vacherin) | D41: 10.5 | F41: 610 | G41: 0.21875 | H41: 6
A42: 2017-07-21 | B42: La Trinité, Col de Cochette, Tours de Montmayeur,X,Ret. (Myrtille) | D42: 10.4 | F42: 550 | G42: 0.1979166667 | H42: 6
A43: 2017-07-27 | B43: Ecole en Bauges, Col d'Orgeval, x , Patous, Ret par la piste | D43: 13.8 | F43: 900 | G43: 0.2604166667 | H43: 7
A44: 2017-08-18 | B44: Marocaz,Rochefort,Manettaz, roche du Guet, X , La thuile, Ret | D44: 11.3 | F44: 871 | G44: 0.2083333333 | H44: 6
A45: 2017-08-25 | B45: Pré d'Orcel, Col , croix et chalet de l'Alpe, L'Alpette, Col Belles Ombres | D45: 14.5 | F45: 890 | G45: 0.2916666667 | H45: 4
A46: 2017-09-08 | B46: Lac St Claire, Villaroux, Tour de Montmayeur, X , Résistants, Ret. | D46: 16.8 | F46: 674 | G46: 0.25 | H46: 6
A47: 2017-09-11 | B47: Lac St André, Croix de St André, "La Chevre", Lachat, Lac Froment | D47: 10.7 | F47: 310 | G47: 0.1472222222 | H47: 5
A48: 2017-09-15 | B48: La Feclaz (1°) , La croix du Nivollet, X , Belvedere du Revard ,Clafoutis | D48: 10 | F48: 412 | G48: 0.1597222222 | H48: 8
A49: 2017-09-18 | B49: les Drouilly, Myans, Chacuzard, Poisy, Crincaillé | D49: 9.4 | F49: 74 | G49: 0.09861111111 | H49: 7
A50: 2017-10-02 | B50: St André, Rte de Bellecombe, Chataigne, Lachat, Lac Froment | D50: 8 | F50: 230 | G50: 0.125 | H50: 3
A51: 2017-10-06 | B51: Barby, Bellevarde,Fées, Rousset, Mt St Michel,x,Stele du maquis,Ret. | D51: 12.5 | F51: 913 | G51: 5h30 | H51: 3
A52: 2017-10-13 | B52: Le Monal, Barrage du Clou, X , Mélèzes, le Monal | D52: 11 | F52: 548 | G52: 0.2083333333 | H52: 6
A53: 2017-10-16 | B53: Chapa, la Cuiller, Chapa, Gisèle | D53: 8 | F53: 190 | G53: 0.09375 | H53: 6
A54: 2017-10-20 | B54: Montée et Descente le long du funiculaire de St Hilaire | D54: 5.6 | F54: 800 | G54: 0.1666666667 | H54: 6
A55: 2017-10-23 | B55: SuperU, le Vivier, Mont Ronjou, St Anthelme, Ret. | D55: 11.4 | F55: 265 | G55: 0.1333333333 | H55: 3
A56: Dernière
A69: Nombre de Randonnées | C69: =COUNTA(B4:B67) -> 52 | D69: Dont: | F69: =NbCoulParCouleur(B4:B79,4) -> 6 | G69: en Raquettes | I69: Moyenne générale
A70: Le Plus | C70: =MAX(D4:D67) -> 17.4 | E70: =MAX(F4:F67) -> 915 | G70: =MAX(G4:G67) -> 0.2916666667 | H70: =MAX(H4:H67) -> 10 | I70: =C73/G73/24 -> 2.924559206
A71: Le Moins | C71: =MIN(D4:D67) -> 5 | E71: =MIN(F4:F67) -> 28 | G71: =MIN(G4:G67) -> 0.09375 | H71: =MIN(H4:H67) -> 2
A72: Moyenne | C72: =AVERAGE(D4:D67) -> 9.728846154 | E72: =AVERAGE(F4:F67) -> 348.5961538 | G72: =AVERAGE(G4:G67) -> 0.1413262527 | H72: =AVERAGE(H4:H67) -> 5.673076923 | I72: =SUM(H4:H67) -> 295
A73: Cumul | C73: =SUM(D4:D66) -> 505.9 | E73: =SUM(F4:F67) -> 18127 | G73: =SUM(G4:G67) -> 7.207638889
A74: Bernard Heck bheck@live.fr 06 41 32 09 56 | C74: Nombre de Restaurant | F74: =NbCoulParCouleur(B4:B53,33) ->  | G74: Nombre de Pique Nique | J74: =NbCoulParCouleur(B4:B79,5) -> 

Sheet Chris2.
A1: Randonnées Christiane P. Année 2017
A2: Date | B2: Randonnée | D2: Distance | F2: Dénivelé + | G2: Durée | H2: Participant | J2: Météo
A4: 2017-03-03 | B4: La Foret, Murs,La Corne, Cugnet, Drouilly | D4: 11.1 | F4: 107 | G4: 0.125 | H4: 10
A5: 2017-03-13 | B5: Depart Super U Pontcharra Tour des Lones | D5: 9.5 | F5: 28 | G5: 0.125 | H5: 8
A6: 2017-03-17 | B6: Les Marches , Chignin Gare,Chacusart , lac des Peres,Ret. | D6: 10.5 | F6: 178 | G6: 0.125 | H6: 8
A7: 2017-03-20 | B7: St André, La Palud, Lachat, St André | D7: 7.6 | F7: 186 | G7: 0.1215277778 | H7: 7
A8: 2017-03-27 | B8: La Foret, Le golf, Chignin, Belissay , ZA | D8: 11.7 | F8: 78 | G8: 0.1270833333 | H8: 8
A9: 2017-03-31 | B9: Seloge Myans, lac des Pères, Pierre hachée, Les Fromagets, | D9: 9.6 | F9: 104 | G9: 0.125 | H9: 7
A10: 2017-04-21 | B10: Super U Francin, Tormery, Le Villard, Tormery, Ret. | D10: 8.1 | F10: 178 | G10: 0.1131944444 | H10: 8
A11: Dernière
A54: Nombre de Randonnées | C54: =COUNTA(B4:B52) -> 7 | D54: Dont: | F54: =NbCoulParCouleur(A4:A52,4) ->  | G54: en Raquettes | I54: Moyenne générale
A55: Le Plus | C55: =MAX(D4:D52) -> 11.7 | E55: =MAX(F4:F52) -> 186 | G55: =MAX(G4:G52) -> 0.1270833333 | H55: =MAX(H4:H52) -> 10 | I55: =C58/G58/24 -> 3.292506044
A56: Le Moins | C56: =MIN(D4:D52) -> 7.6 | E56: =MIN(F4:F52) -> 28 | G56: =MIN(G4:G52) -> 0.1131944444 | H56: =MIN(H4:H52) -> 7
A57: Moyenne | C57: =AVERAGE(D4:D52) -> 9.728571429 | E57: =AVERAGE(F4:F52) -> 122.7142857 | G57: =AVERAGE(G4:G52) -> 0.1231150794 | H57: =AVERAGE(H4:H52) -> 8 | I57: =SUM(H4:H52) -> 56
A58: Cumul | C58: =SUM(D4:D52) -> 68.1 | E58: =SUM(F4:F52) -> 859 | G58: =SUM(G4:G52) -> 0.8618055556
A59: Bernard Heck bheck@live.fr 06 41 32 09 56 | C59: Nombre de Restaurant | F59: =NbCoulParCouleur(B4:B52,33) ->  | G59: Nombre de Pique Nique | J59: =NbCoulParCouleur(B4:B52,5) -> 

Sheet Christiane
A1: Randonnées Christiane Année 2017
A2: Date | B2: Randonnée | D2: Distance | F2: Dénivelé + | G2: Durée | H2: Participant | J2: Météo
A4: 2017-01-06 | B4: Murs,Le lac St André , Le lac des Peres, Gallettes, Seloge, Ret | D4: 8.8 | F4: 56 | G4: 0.09722222222 | H4: 7
A5: 2017-02-13 | B5: Les déserts d'Entremonts , Col du Mollard | D5: 6 | F5: 305 | G5: 0.1041666667 | H5: 5
A6: 2017-02-20 | B6: F1, sentier des hauts de Chignin par Montlevin, Retour | D6: 8.4 | F6: 423 | G6: 0.1180555556 | H6: 4
A7: 2017-02-27 | B7: Super U Francin, circuit des vignes Chignin , Retour | D7: 11 | F7: 236 | G7: 0.125 | H7: 7
A8: 2017-04-03 | B8: St André, Martinons, Lac Sablé, Lac Froment, Ret | D8: 9.3 | F8: 241 | G8: 0.1354166667 | H8: 7
A9: 2017-04-07 | B9: St André, la Ratte, Apremont, Pierre Grosse, Ret. | D9: 9.8 | F9: 128 | G9: 0.1111111111 | H9: 5
A10: 2017-04-10 | B10: St André, Lachat, Lac Noir, La palud, St André | D10: 12.1 | F10: 438 | G10: 0.1506944444 | H10: 4
A11: 2017-04-14 | B11: Chapa, La Fourchette, La cuiller, Les delaisses de l'isere, Ret | D11: 11.5 | F11: 328 | G11: 0.125 | H11: 8
A12: 2017-04-18 | B12: St André, La palud, Lachat, La Ratte, St André | D12: 11 | F12: 289 | G12: 0.125 | H12: 5
A13: 2017-05-02 | B13: St André, Lachat, Maison en pierre, Apremont, Ret. | D13: 7.5 | F13: 284 | G13: 0.1048611111 | H13: 5
A14: 2017-05-05 | B14: St Pierre de Soucy, Soucy, Ret,X, Tour du lac de Ste Helene | D14: 13.2 | F14: 240 | G14: 0.15625 | H14: 9
A15: 2017-05-15 | B15: La Foret, Le Bon de Loge, Murs, Retour | D15: 11.7 | F15: 81 | G15: 0.1194444444 | H15: 7
A16: 2017-05-22 | B16: St Georges, Parcours santé Ste Marie, La Baleine, Muguet, Ret. | D16: 8.3 | F16: 167 | G16: 0.1125 | H16: 5
A17: 2017-06-16 | B17: Cascades d'Alloix | D17: 5 | F17: 363 | G17: 0.09375 | H17: 8
A18: 2017-10-09 | B18: La Foret, Murs, Bisplaine, le Lac, Crinquaillé | D18: 11.2 | F18: 58 | G18: 0.125 | H18: 10
A19: 2017-10-16 | B19: Chapa, la Cuiller, Chapa, Gisèle | D19: 8 | F19: 190 | G19: 0.09375 | H19: 6
A20: Dernière
A55: Nombre de Randonnées | C55: =COUNTA(B4:B53) -> 16 | D55: Dont: | F55: =NbCoulParCouleur(B4:B70,4) ->  | G55: en Raquettes | I55: Moyenne générale
A56: Le Plus | C56: =MAX(D4:D53) -> 13.2 | E56: =MAX(F4:F53) -> 438 | G56: =MAX(G4:G53) -> 0.15625 | H56: =MAX(H4:H53) -> 10 | I56: =C59/G59/24 -> 3.355783309
A57: Le Moins | C57: =MIN(D4:D53) -> 5 | E57: =MIN(F4:F53) -> 56 | G57: =MIN(G4:G53) -> 0.09375 | H57: =MIN(H4:H53) -> 4
A58: Moyenne | C58: =AVERAGE(D4:D53) -> 9.55 | E58: =AVERAGE(F4:F53) -> 239.1875 | G58: =AVERAGE(G4:G53) -> 0.1185763889 | H58: =AVERAGE(H4:H53) -> 6.375 | I58: =SUM(H4:H53) -> 102
A59: Cumul | C59: =SUM(D4:D53) -> 152.8 | E59: =SUM(F4:F53) -> 3827 | G59: =SUM(G4:G53) -> 1.897222222
A60: Bernard Heck bheck@live.fr 06 41 32 09 56 | C60: Nombre de Restaurant | F60: =NbCoulParCouleur(B4:B53,33) ->  | G60: Nombre de Pique Nique | J60: =NbCoulParCouleur(B4:B70,5) -> 

Sheet Dany
A1: Randonnées Dany Année 2017
A2: Date | B2: Randonnée | D2: Distance | F2: Dénivelé + | G2: Durée | H2: Participant | J2: Météo
A4: 2017-01-06 | B4: Murs,Le lac St André , Le lac des Peres, Gallettes, Seloge, Ret | D4: 8.8 | F4: 56 | G4: 0.09722222222 | H4: 7
A5: 2017-01-09 | B5: Lac, Les Fromagets, Lac Froment, Surprise de Yolande, La Palud St André | D5: 11.2 | F5: 204 | G5: 0.1388888889 | H5: 5
A6: 2017-01-16 | B6: Belisay, Saint Jeoire, Myans Ret | D6: 11.2 | F6: 115 | G6: 0.125 | H6: 6
A7: 2017-01-20 | B7: Chemin de Blardet, la Ratte, Les Pélerins, Maretaz, Les Droully, Ret. | D7: 11.1 | F7: 65 | G7: 0.125 | H7: 5
A8: 2017-01-30 | B8: Murs,Le lac St André , Le lac clair, les Abymes, Maraville Rt des Mortes | D8: 10.8 | F8: 61 | G8: 0.1180555556 | H8: 2
A9: 2017-02-06 | B9: La corne, Blardet Lac des peres, Les Pélerins , Les Drouilly | D9: 9.7 | F9: 65 | G9: 0.1076388889 | H9: 6
A10: 2017-02-10 | B10: Murs, Chapa, Lac Clair, Blardet, RN , Murs | D10: 10.9 | F10: 61 | G10: 0.1111111111 | H10: 2
A11: 2017-02-13 | B11: Murs, Lac St André, La redoute, Myans, Seloge, La foret, Murs | D11: 10.8 | F11: 135 | G11: 0.1076388889 | H11: 2
A12: 2017-02-17 | B12: Murs, La Foret, Bois musart, Champlong , Retour | D12: 7.8 | F12: 35 | G12: 0.08333333333 | H12: 2
A13: 2017-02-27 | B13: Super U Francin, circuit des vignes Chignin , Retour | D13: 11 | F13: 236 | G13: 0.125 | H13: 7
A14: 2017-03-17 | B14: Les Marches , Chignin Gare,Chacusart , lac des Peres,Ret. | D14: 10.5 | F14: 178 | G14: 0.125 | H14: 8
A15: 2017-03-24 | B15: Seloge, Les fontanettes, Myans, Retour idem | D15: 11 | F15: 75 | G15: 0.1354166667 | H15: 4
A16: 2017-03-31 | B16: Seloge Myans, lac des Pères, Pierre hachée, Les Fromagets, | D16: 9.6 | F16: 104 | G16: 0.125 | H16: 7
A17: 2017-04-07 | B17: St André, la Ratte, Apremont, Pierre Grosse, Ret. | D17: 9.8 | F17: 128 | G17: 0.1111111111 | H17: 5
A18: 2017-04-14 | B18: Chapa, La Fourchette, La cuiller, Les delaisses de l'isere, Ret | D18: 11.5 | F18: 328 | G18: 0.125 | H18: 8
A19: 2017-04-21 | B19: Super U Francin, Tormery, Le Villard, Tormery, Ret. | D19: 8.1 | F19: 178 | G19: 0.1131944444 | H19: 8
A20: 2017-05-02 | B20: St André, Lachat, Maison en pierre, Apremont, Ret. | D20: 7.5 | F20: 284 | G20: 0.1048611111 | H20: 5
A21: 2017-05-05 | B21: St Pierre de Soucy, Soucy, Ret, X | D21: 9.6 | F21: 233 | G21: 0.1055555556 | H21: 8
A22: 2017-06-02 | B22: St André, Lachat, Apremont, Ret. | D22: 9 | F22: 100 | G22: 0.1145833333 | H22: 6
A23: 2017-06-12 | B23: St André, La Palud, Lachat, Lac Froment, St André | D23: 7.2 | F23: 162 | G23: 0.1041666667 | H23: 7
A24: 2017-09-18 | B24: les Drouilly, Myans, Chacuzard, Poisy, Crincaillé | D24: 9.4 | F24: 74 | G24: 0.09861111111 | H24: 7
A25: 2017-09-25 | B25: Lac St André, Lachat, ret. Par la Chevre | D25: 10 | F25: 292 | G25: 0.125 | H25: 7
A26: Dernière
A55: Nombre de Randonnées | C55: =COUNTA(B4:B53) -> 22 | D55: Dont: | F55: =NbCoulParCouleur(B4:B70,4) ->  | G55: en Raquettes | I55: Moyenne générale
A56: Le Plus | C56: =MAX(D4:D53) -> 11.5 | E56: =MAX(F4:F53) -> 328 | G56: =MAX(G4:G53) -> 0.1388888889 | H56: =MAX(H4:H53) -> 8 | I56: =C59/G59/24 -> 3.570643211
A57: Le Moins | C57: =MIN(D4:D53) -> 7.2 | E57: =MIN(F4:F53) -> 35 | G57: =MIN(G4:G53) -> 0.08333333333 | H57: =MIN(H4:H53) -> 2
A58: Moyenne | C58: =AVERAGE(D4:D53) -> 9.840909091 | E58: =AVERAGE(F4:F53) -> 144.0454545 | G58: =AVERAGE(G4:G53) -> 0.1148358586 | H58: =AVERAGE(H4:H53) -> 5.636363636 | I58: =SUM(H4:H53) -> 124
A59: Cumul | C59: =SUM(D4:D53) -> 216.5 | E59: =SUM(F4:F53) -> 3169 | G59: =SUM(G4:G53) -> 2.526388889
A60: Bernard Heck bheck@live.fr 06 41 32 09 56 | C60: Nombre de Restaurant | F60: =NbCoulParCouleur(B4:B53,33) ->  | G60: Nombre de Pique Nique | J60: =NbCoulParCouleur(B4:B70,5) -> 

Sheet Gianna
A1: Randonnées Gianna Année 2017
A2: Date | B2: Randonnée | D2: Distance | F2: Dénivelé + | G2: Durée | H2: Participant | J2: Météo
A4: 2017-01-06 | B4: Murs,Le lac St André , Le lac des Peres, Gallettes, Seloge, Ret | D4: 8.8 | F4: 56 | G4: 0.09722222222 | H4: 7
A5: 2017-01-09 | B5: Lac, Les Fromagets, Lac Froment, Surprise de Yolande, La Palud, ret. | D5: 11.2 | F5: 204 | G5: 0.1388888889 | H5: 5
A6: 2017-01-16 | B6: Belisay, Saint Jeoire, Myans Ret | D6: 11.2 | F6: 115 | G6: 0.125 | H6: 6
A7: 2017-01-30 | B7: Murs,Le lac St André , Le lac clair, les Abymes, Maraville Rt des Mortes | D7: 10.8 | F7: 61 | G7: 0.1180555556 | H7: 2
A8: 2017-02-10 | B8: Murs, Chapa, Lac Clair, Blardet, RN , Murs | D8: 10.9 | F8: 61 | G8: 0.1111111111 | H8: 2
A9: 2017-02-13 | B9: Murs, Lac St André, La redoute, Myans, Seloge, La foret, Murs | D9: 10.8 | F9: 135 | G9: 0.1076388889 | H9: 2
A10: 2017-02-17 | B10: Murs, La Foret, Bois musart, Champlong , Retour | D10: 7.8 | F10: 35 | G10: 0.08333333333 | H10: 2
A11: 2017-03-24 | B11: Seloge, Les fontanettes, Myans, Retour idem | D11: 11 | F11: 75 | G11: 0.1354166667 | H11: 4
A12: 2017-04-18 | B12: St André, La palud, Lachat, La Ratte, St André | D12: 11 | F12: 289 | G12: 0.125 | H12: 5
A13: 2017-04-21 | B13: Super U Francin, Tormery, Le Villard, Tormery, Ret. | D13: 8.1 | F13: 178 | G13: 0.1131944444 | H13: 8
A14: 2017-09-25 | B14: Lac St André, Lachat, ret. Par la Chevre | D14: 10 | F14: 292 | G14: 0.125 | H14: 7
A15: Dernière
A55: Nombre de Randonnées | C55: =COUNTA(B4:B53) -> 11 | D55: Dont: | F55: =NbCoulParCouleur(B4:B70,4) ->  | G55: en Raquettes | I55: Moyenne générale
A56: Le Plus | C56: =MAX(D4:D53) -> 11.2 | E56: =MAX(F4:F53) -> 292 | G56: =MAX(G4:G53) -> 0.1388888889 | H56: =MAX(H4:H53) -> 8 | I56: =C59/G59/24 -> 3.633206728
A57: Le Moins | C57: =MIN(D4:D53) -> 7.8 | E57: =MIN(F4:F53) -> 35 | G57: =MIN(G4:G53) -> 0.08333333333 | H57: =MIN(H4:H53) -> 2
A58: Moyenne | C58: =AVERAGE(D4:D53) -> 10.14545455 | E58: =AVERAGE(F4:F53) -> 136.4545455 | G58: =AVERAGE(G4:G53) -> 0.1163510101 | H58: =AVERAGE(H4:H53) -> 4.545454545 | I58: =SUM(H4:H53) -> 50
A59: Cumul | C59: =SUM(D4:D53) -> 111.6 | E59: =SUM(F4:F53) -> 1501 | G59: =SUM(G4:G53) -> 1.279861111
A60: Bernard Heck bheck@live.fr 06 41 32 09 56 | C60: Nombre de Restaurant | F60: =NbCoulParCouleur(B4:B53,33) ->  | G60: Nombre de Pique Nique | J60: =NbCoulParCouleur(B4:B70,5) -> 

Sheet Gisèle
A1: Randonnées Gisèle Année 2017
A2: Date | B2: Randonnée | D2: Distance | F2: Dénivelé + | G2: Durée | H2: Participant | J2: Météo
A4: 2017-01-06 | B4: Murs,Le lac St André , Le lac des Peres, Gallettes, Seloge, Ret | D4: 8.8 | F4: 56 | G4: 0.09722222222 | H4: 7
A5: 2017-01-09 | B5: Lac, Les Fromagets, Lac Froment, Surprise de Yolande, La Palud, ret. | D5: 11.2 | F5: 204 | G5: 0.1388888889 | H5: 5
A6: 2017-01-16 | B6: Belisay, Saint Jeoire, Myans Ret | D6: 11.2 | F6: 115 | G6: 0.125 | H6: 6
A7: 2017-01-20 | B7: Chemin de Blardet, la Ratte, Les Pélerins, Maretaz, Les Droully, Ret. | D7: 11.1 | F7: 65 | G7: 0.125 | H7: 5
A8: 2017-01-27 | B8: Col du Granier, Tencovaz, Col du Granier | D8: 6 | F8: 181 | G8: 0.1041666667 | H8: 5
A9: 2017-02-06 | B9: La corne, Blardet Lac des peres, Les Pélerins , Les Drouilly | D9: 9.7 | F9: 65 | G9: 0.1076388889 | H9: 6
A10: 2017-02-10 | B10: Col du Granier, Tencovaz, Col du Granier ,"superbe" | D10: 6.1 | F10: 192 | G10: 0.1076388889 | H10: 3
A11: 2017-02-13 | B11: Les déserts d'Entremonts , Col du Mollard | D11: 6 | F11: 305 | G11: 0.1041666667 | H11: 5
A12: 2017-02-17 | B12: Les deserts dEntremont le grand Carroz, Col du Mollard | D12: 6.7 | F12: 432 | G12: 0.1041666667 | H12: 5
A13: 2017-02-27 | B13: Super U Francin, circuit des vignes Chignin , Retour | D13: 11 | F13: 236 | G13: 0.125 | H13: 7
A14: 2017-03-03 | B14: La Foret, Murs,La Corne, Cugnet, Drouilly | D14: 11.1 | F14: 107 | G14: 0.125 | H14: 10
A15: 2017-03-10 | B15: Les déserts d'Entremonts , Col du Mollard | D15: 6 | F15: 305 | G15: 0.1041666667 | H15: 4
A16: 2017-03-13 | B16: Depart Super U Pontcharra Tour des Lones | D16: 9.5 | F16: 28 | G16: 0.125 | H16: 8
A17: 2017-03-17 | B17: Les Marches , Chignin Gare,Chacusart , lac des Peres,Ret. | D17: 10.5 | F17: 178 | G17: 0.125 | H17: 8
A18: 2017-03-27 | B18: La Foret, Le golf, Chignin, Belissay , ZA | D18: 11.7 | F18: 78 | G18: 0.1270833333 | H18: 8
A19: 2017-03-31 | B19: Seloge Myans, lac des Pères, Pierre hachée, Les Fromagets, | D19: 9.6 | F19: 104 | G19: 0.125 | H19: 7
A20: 2017-04-03 | B20: St André, Martinons, Lac Sablé, Lac Froment, Ret | D20: 9.3 | F20: 241 | G20: 0.1354166667 | H20: 7
A21: 2017-04-07 | B21: St André, la Ratte, Apremont, Pierre Grosse, Ret. | D21: 9.8 | F21: 128 | G21: 0.1111111111 | H21: 5
A22: 2017-04-10 | B22: St André, Lachat, Lac Noir, La palud, St André | D22: 12.1 | F22: 438 | G22: 0.1506944444 | H22: 4
A23: 2017-04-14 | B23: Chapa, La Fourchette, La cuiller, Les delaisses de l'isere, Ret | D23: 11.5 | F23: 328 | G23: 0.125 | H23: 8
A24: 2017-04-18 | B24: St André, La palud, Lachat, La Ratte, St André | D24: 11 | F24: 289 | G24: 0.125 | H24: 5
A25: 2017-05-05 | B25: St Pierre de Soucy, Soucy, Ret,X, Tour du lac de Ste Helene | D25: 13.2 | F25: 240 | G25: 0.15625 | H25: 9
A26: 2017-05-15 | B26: La Foret, Le Bon de Loge, Murs, Retour | D26: 11.7 | F26: 81 | G26: 0.1194444444 | H26: 7
A27: 2017-05-19 | B27: St André, La Palud, Pervenche, Martinon, Lachat, Froment, Ret. | D27: 8.5 | F27: 282 | G27: 0.1041666667 | H27: 3
A28: 2017-05-22 | B28: St Georges, Parcours santé Ste Marie, La Baleine, Muguet, Ret. | D28: 8.3 | F28: 167 | G28: 0.1125 | H28: 5
A29: 2017-05-29 | B29: Les Deserts, Pointe de Cochette rocher de l'Outheran, X , Ret | D29: 6.8 | F29: 638 | G29: 0.1354166667 | H29: 4
A30: 2017-06-02 | B30: St André, Lachat, Apremont, Ret. | D30: 9 | F30: 100 | G30: 0.1145833333 | H30: 6
A31: 2017-06-09 | B31: Chapa, Bellecombette, Bellecombe, Vieux clocher | D31: 8.2 | F31: 445 | G31: 0.1354166667 | H31: 6
A32: 2017-06-12 | B32: St André, La Palud, Lachat, Lac Froment, St André | D32: 7.2 | F32: 162 | G32: 0.1041666667 | H32: 7
A33: 2017-06-16 | B33: Cascades d'Alloix | D33: 5 | F33: 363 | G33: 0.09375 | H33: 8
A34: 2017-06-30 | B34: Apremont, cascade du pichut, Le Villard, Ret, | D34: 7.9 | F34: 227 | G34: 0.09722222222 | H34: 6
A35: 2017-07-07 | B35: Prodin, Lac des Grenouilles, Col de la Perche, Refuge Grande Mont. | D35: 13.5 | F35: 915 | G35: 0.2604166667 | H35: 4
A36: 2017-07-13 | B36: Col de St Saturnin, Pragondran, Piste d'envol x, Ret.(Vacherin) | D36: 10.5 | F36: 610 | G36: 0.21875 | H36: 6
A37: 2017-07-21 | B37: La Trinité, Col de Cochette, Tours de Montmayeur,X,Ret. (Myrtille) | D37: 10.4 | F37: 550 | G37: 0.1979166667 | H37: 6
A38: 2017-07-27 | B38: Ecole en Bauges, Col d'Orgeval, x , Patous, Ret par la piste | D38: 13.8 | F38: 900 | G38: 0.2604166667 | H38: 7
A39: 2017-08-04 | B39: Col du Granier, Pointe de la Gorgeat, Mont Joigny, X , Ret. | D39: 8 | F39: 430 | G39: 0.1666666667 | H39: 5
A40: 2017-08-25 | B40: Pré d'Orcel, Col , croix et chalet de l'Alpe, L'Alpette, Col Belles Ombres | D40: 14.5 | F40: 890 | G40: 0.2916666667 | H40: 4
A41: 2017-09-15 | B41: La Feclaz (1°) , La croix du Nivollet, X , Belvedere du Revard ,Clafoutis | D41: 10 | F41: 412 | G41: 0.1597222222 | H41: 8
A42: 2017-09-18 | B42: les Drouilly, Myans, Chacuzard, Poisy, Crincaillé | D42: 9.4 | F42: 74 | G42: 0.09861111111 | H42: 7
A43: 2017-09-22 | B43: Château Richard, x , Croix du Signal , Ret. | D43: 11 | F43: 561 | G43: 0.2083333333 | H43: 7
A44: 2017-09-25 | B44: Lac St André, Lachat, ret. Par la Chevre | D44: 10 | F44: 292 | G44: 0.125 | H44: 7
A45: 2017-09-29 | B45: Cimetiere, Croix Verpi, St André, Les fromagets Lac St André | D45: 11.8 | F45: 100 | G45: 0.1458333333 | H45: 3
A46: 2017-10-02 | B46: St André, Rte de Bellecombe, Chataigne, Lachat, Lac Froment | D46: 8 | F46: 230 | G46: 0.125 | H46: 3
A47: 2017-10-06 | B47: Barby, Bellevarde,Fées, Rousset, Mt St Michel,x,Stele du maquis, Ret. | D47: 12.5 | F47: 913 | G47: 5h30 | H47: 3
A48: 2017-10-09 | B48: La Foret, Murs, Bisplaine, le Lac, Crinquaillé | D48: 11.2 | F48: 58 | G48: 0.125 | H48: 10
A49: 2017-10-13 | B49: Le Monal, Barrage du Clou, X , Mélèzes, le Monal | D49: 11 | F49: 548 | G49: 0.2083333333 | H49: 6
A50: 2017-10-16 | B50: Chapa, la Cuiller, Chapa, Gisèle | D50: 8 | F50: 190 | G50: 0.09375 | H50: 6
A51: 2017-10-20 | B51: Montée et Descente le long du funiculaire de St Hilaire | D51: 5.6 | F51: 800 | G51: 0.1666666667 | H51: 6
A52: Dernière
A61: Nombre de Randonnées | C61: =COUNTA(B4:B59) -> 48 | D61: Dont: | F61: =NbCoulParCouleur(B4:B76,4) ->  | G61: en Raquettes | I61: Moyenne générale
A62: Le Plus | C62: =MAX(D4:D59) -> 14.5 | E62: =MAX(F4:F59) -> 915 | G62: =MAX(G4:G59) -> 0.2916666667 | H62: =MAX(H4:H59) -> 10 | I62: =C65/G65/24 -> 2.960832183
A63: Le Moins | C63: =MIN(D4:D59) -> 5 | E63: =MIN(F4:F59) -> 28 | G63: =MIN(G4:G59) -> 0.09375 | H63: =MIN(H4:H59) -> 3
A64: Moyenne | C64: =AVERAGE(D4:D59) -> 9.685416667 | E64: =AVERAGE(F4:F59) -> 317.7708333 | G64: =AVERAGE(G4:G59) -> 0.1391991726 | H64: =AVERAGE(H4:H59) -> 5.979166667 | I64: =SUM(H4:H59) -> 287
A65: Cumul | C65: =SUM(D4:D59) -> 464.9 | E65: =SUM(F4:F59) -> 15253 | G65: =SUM(G4:G59) -> 6.542361111
A66: Bernard Heck bheck@live.fr 06 41 32 09 56 | C66: Nombre de Restaurant | F66: =NbCoulParCouleur(B4:B54,33) ->  | G66: Nombre de Pique Nique | J66: =NbCoulParCouleur(B4:B76,5) -> 

Sheet Josiane
A1: Randonnées Josiane Année 2017
A2: Date | B2: Randonnée | D2: Distance | F2: Dénivelé + | G2: Durée | H2: Participant | J2: Météo
A4: 2017-09-08 | B4: Lac St Claire, Villaroux, Tour de Montmayeur, X , Résistants, Ret. | D4: 16.8 | F4: 674 | G4: 0.25 | H4: 6
A5: 2017-09-15 | B5: La Feclaz (1°) , La croix du Nivollet, X , Belvedere du Revard ,Clafoutis | D5: 10 | F5: 412 | G5: 0.1597222222 | H5: 8
A6: 2017-09-22 | B6: Château Richard, x , Croix du Signal , Ret. | D6: 11 | F6: 561 | G6: 0.2083333333 | H6: 7
A7: Dernière
A55: Nombre de Randonnées | C55: =COUNTA(B4:B53) -> 3 | D55: Dont: | F55: =NbCoulParCouleur(B4:B70,4) ->  | G55: en Raquettes | I55: Moyenne générale
A56: Le Plus | C56: =MAX(D4:D53) -> 16.8 | E56: =MAX(F4:F53) -> 674 | G56: =MAX(G4:G53) -> 0.25 | H56: =MAX(H4:H53) -> 8 | I56: =C59/G59/24 -> 2.548314607
A57: Le Moins | C57: =MIN(D4:D53) -> 10 | E57: =MIN(F4:F53) -> 412 | G57: =MIN(G4:G53) -> 0.1597222222 | H57: =MIN(H4:H53) -> 6
A58: Moyenne | C58: =AVERAGE(D4:D53) -> 12.6 | E58: =AVERAGE(F4:F53) -> 549 | G58: =AVERAGE(G4:G53) -> 0.2060185185 | H58: =AVERAGE(H4:H53) -> 7 | I58: =SUM(H4:H53) -> 21
A59: Cumul | C59: =SUM(D4:D53) -> 37.8 | E59: =SUM(F4:F53) -> 1647 | G59: =SUM(G4:G53) -> 0.6180555556
A60: Bernard Heck bheck@live.fr 06 41 32 09 56 | C60: Nombre de Restaurant | F60: =NbCoulParCouleur(B4:B53,33) ->  | G60: Nombre de Pique Nique | J60: =NbCoulParCouleur(B4:B70,5) -> 

Sheet Marie-F.
A1: Randonnées Marie-France Année 2017
A2: Date | B2: Randonnée | D2: Distance | F2: Dénivelé + | G2: Durée | H2: Participant | J2: Météo
A4: 2017-01-06 | B4: Murs,Le lac St André , Le lac des Peres, Gallettes, Seloge, Ret | D4: 8.8 | F4: 56 | G4: 0.09722222222 | H4: 7
A5: 2017-04-10 | B5: St André, Lachat, Lac Noir, La palud, St André | D5: 12.1 | F5: 438 | G5: 0.1506944444 | H5: 4
A6: 2017-04-14 | B6: Chapa, La Fourchette, La cuiller, Les delaisses de l'isere, Ret | D6: 11.5 | F6: 328 | G6: 0.125 | H6: 8
A7: 2017-05-05 | B7: St Pierre de Soucy, Soucy, Ret,X, Tour du lac de Ste Helene | D7: 13.2 | F7: 240 | G7: 0.15625 | H7: 9
A8: 2017-05-08 | B8: St André, Le devin, Maison en pierre, Lachat, La Palud, les Darbe | D8: 10.1 | F8: 288 | G8: 0.1284722222 | H8: 6
A9: 2017-05-15 | B9: La Foret, Le Bon de Loge, Murs, Retour | D9: 11.7 | F9: 81 | G9: 0.1194444444 | H9: 7
A10: 2017-06-02 | B10: St André, Lachat, Apremont, Ret. | D10: 9 | F10: 100 | G10: 0.1145833333 | H10: 6
A11: 2017-06-12 | B11: St André, La Palud, Lachat, Lac Froment, St André | D11: 7.2 | F11: 162 | G11: 0.1041666667 | H11: 7
A12: 2017-06-23 | B12: St François de Salle, Chal. de la Platte,le Creux de lachat, X, Ret | D12: 17.4 | F12: 624 | G12: 0.25 | H12: 6
A13: 2017-06-30 | B13: Apremont, cascade du pichut, Le Villard, Ret, | D13: 7.9 | F13: 227 | G13: 0.09722222222 | H13: 6
A14: 2017-07-07 | B14: Prodin, Lac des Grenouilles, Col de la Perche, Refuge Grande Mont. | D14: 13.5 | F14: 915 | G14: 0.2604166667 | H14: 4
A15: 2017-07-13 | B15: Col de St Saturnin, Pragondran, Piste d'envol x, Ret.(Vacherin) | D15: 10.5 | F15: 610 | G15: 0.21875 | H15: 6
A16: 2017-08-04 | B16: Col du Granier, Pointe de la Gorgeat, Mont Joigny, X , Ret. | D16: 8 | F16: 430 | G16: 0.1666666667 | H16: 5
A17: 2017-08-18 | B17: Marocaz,Rochefort,Manettaz, roche du Guet, X , La thuile, Ret | D17: 11.3 | F17: 871 | G17: 0.2083333333 | H17: 6
A18: 2017-09-08 | B18: Lac St Claire, Villaroux, Tour de Montmayeur, X , Résistants, Ret. | D18: 16.8 | F18: 674 | G18: 0.25 | H18: 6
A19: 2017-09-11 | B19: Lac St André, Croix de St André, "La Chevre", Lachat, Lac Froment | D19: 12 | F19: 310 | G19: 0.1472222222 | H19: 5
A20: 2017-09-15 | B20: La Feclaz (1°) , La croix du Nivollet, X , Belvedere du Revard ,Clafoutis | D20: 10 | F20: 412 | G20: 0.1597222222 | H20: 8
A21: 2017-09-18 | B21: les Drouilly, Myans, Chacuzard, Poisy, Crincaillé | D21: 9.4 | F21: 74 | G21: 0.09861111111 | H21: 7
A22: 2017-09-22 | B22: Château Richard, x , Croix du Signal , Ret. | D22: 11 | F22: 561 | G22: 0.2083333333 | H22: 7
A23: 2017-09-25 | B23: Lac St André, Lachat, ret. Par la Chevre | D23: 10 | F23: 292 | G23: 0.125 | H23: 7
A24: 2017-10-09 | B24: La Foret, Murs, Bisplaine, le Lac, Crinquaillé | D24: 11.2 | F24: 58 | G24: 0.125 | H24: 10
A25: Dernière
A55: Nombre de Randonnées | C55: =COUNTA(B4:B53) -> 21 | D55: Dont: | F55: =NbCoulParCouleur(B4:B70,4) ->  | G55: en Raquettes | I55: Moyenne générale
A56: Le Plus | C56: =MAX(D4:D53) -> 17.4 | E56: =MAX(F4:F53) -> 915 | G56: =MAX(G4:G53) -> 0.2604166667 | H56: =MAX(H4:H53) -> 10 | I56: =C59/G59/24 -> 2.927013423
A57: Le Moins | C57: =MIN(D4:D53) -> 7.2 | E57: =MIN(F4:F53) -> 56 | G57: =MIN(G4:G53) -> 0.09722222222 | H57: =MIN(H4:H53) -> 4
A58: Moyenne | C58: =AVERAGE(D4:D53) -> 11.07619048 | E58: =AVERAGE(F4:F53) -> 369.0952381 | G58: =AVERAGE(G4:G53) -> 0.1576719577 | H58: =AVERAGE(H4:H53) -> 6.523809524 | I58: =SUM(H4:H53) -> 137
A59: Cumul | C59: =SUM(D4:D53) -> 232.6 | E59: =SUM(F4:F53) -> 7751 | G59: =SUM(G4:G53) -> 3.311111111
A60: Bernard Heck bheck@live.fr 06 41 32 09 56 | C60: Nombre de Restaurant | F60: =NbCoulParCouleur(B4:B53,33) ->  | G60: Nombre de Pique Nique | J60: =NbCoulParCouleur(B4:B70,5) -> 

Sheet Marie
A1: Randonnées Marie Année 2017
A2: Date | B2: Randonnée | D2: Distance | F2: Dénivelé + | G2: Durée | H2: Participant | J2: Météo
A4: 2017-01-06 | B4: Murs,Le lac St André , Le lac des Peres, Gallettes, Seloge, Ret | D4: 8.8 | F4: 56 | G4: 0.09722222222 | H4: 7
A5: 2017-01-09 | B5: Lac, Les Fromagets, Lac Froment, Surprise de Yolande, La Palud, ret. | D5: 11.2 | F5: 204 | G5: 0.1388888889 | H5: 5
A6: 2017-01-16 | B6: Belisay, Saint Jeoire, Myans Ret | D6: 11.2 | F6: 115 | G6: 0.125 | H6: 6
A7: 2017-01-20 | B7: Chemin de Blardet, la Ratte, Les Pélerins, Maretaz, Les Droully, Ret. | D7: 11.1 | F7: 65 | G7: 0.125 | H7: 5
A8: 2017-01-27 | B8: Col du Granier, Tencovaz, Col du Granier | D8: 6 | F8: 181 | G8: 0.1041666667 | H8: 5
A9: 2017-02-02 | B9: La coche, Direction Col du Granier, Piste de ski du Granier, La coche | D9: 5.8 | F9: 280 | G9: 0.1076388889 | H9: 3
A10: 2017-02-13 | B10: Les déserts d'Entremonts , Col du Mollard | D10: 6 | F10: 305 | G10: 0.1041666667 | H10: 5
A11: 2017-02-17 | B11: Les deserts dEntremont le grand Carroz, Col du Mollard | D11: 6.7 | F11: 432 | G11: 0.1041666667 | H11: 5
A12: 2017-02-24 | B12: chemin des abymes, Myans, chocolaterie Eden, guimauve | D12: 8.3 | F12: 100 | G12: 0.1041666667 | H12: 4
A13: 2017-02-27 | B13: Super U Francin, circuit des vignes Chignin , Retour | D13: 11 | F13: 236 | G13: 0.125 | H13: 7
A14: 2017-03-03 | B14: La Foret, Murs,La Corne, Cugnet, Drouilly | D14: 11.1 | F14: 107 | G14: 0.125 | H14: 10
A15: 2017-03-13 | B15: Depart Super U Pontcharra Tour des Lones | D15: 9.5 | F15: 28 | G15: 0.125 | H15: 8
A16: 2017-03-17 | B16: Les Marches , Chignin Gare,Chacusart , lac des Peres,Ret. | D16: 10.5 | F16: 178 | G16: 0.125 | H16: 8
A17: 2017-03-20 | B17: St André, La Palud, Lachat, St André | D17: 7.6 | F17: 186 | G17: 0.1215277778 | H17: 7
A18: 2017-03-27 | B18: La Foret, Le golf, Chignin, Belissay , ZA | D18: 11.7 | F18: 78 | G18: 0.1270833333 | H18: 8
A19: 2017-04-21 | B19: Super U Francin, Tormery, Le Villard, Tormery, Ret. | D19: 8.1 | F19: 178 | G19: 0.1131944444 | H19: 8
A20: 2017-04-24 | B20: Le Boyat, Puygros, Le Bois, Ret. | D20: 6.7 | F20: 250 | G20: 0.08333333333 | H20: 2
A21: 2017-05-02 | B21: St André, Lachat, Maison en pierre, Apremont, Ret. | D21: 7.5 | F21: 284 | G21: 0.1048611111 | H21: 5
A22: 2017-05-05 | B22: St Pierre de Soucy, Soucy, Ret,X, Tour du lac de Ste Helene | D22: 13.2 | F22: 240 | G22: 0.15625 | H22: 9
A23: 2017-05-08 | B23: St André, Le devin, Maison en pierre, Lachat, La Palud, les Darbe | D23: 10.1 | F23: 288 | G23: 0.1284722222 | H23: 6
A24: 2017-05-15 | B24: Les Marches, La Foret avec le Labrador | D24: 2.5 | F24: 25 | G24: 0.03472222222 | H24: 8
A25: 2017-06-09 | B25: Chapa, Bellecombette, Bellecombe, Vieux clocher | D25: 8.2 | F25: 445 | G25: 0.1354166667 | H25: 6
A26: 2017-06-12 | B26: St André, La Palud, Lachat, Lac Froment, St André | D26: 7.2 | F26: 162 | G26: 0.1041666667 | H26: 7
A27: 2017-06-16 | B27: Cascades d'Alloix | D27: 5 | F27: 363 | G27: 0.09375 | H27: 8
A28: 2017-07-21 | B28: La Trinité, Col de Cochette, Tours de Montmayeur,X,Ret. (Myrtille) | D28: 10.4 | F28: 550 | G28: 0.1979166667 | H28: 6
A29: 2017-07-27 | B29: Ecole en Bauges, Col d'Orgeval, x , Patous, Ret par la piste | D29: 13.8 | F29: 900 | G29: 0.2604166667 | H29: 7
A30: 2017-08-04 | B30: Col du Granier, Pointe de la Gorgeat, Mont Joigny, X , Ret. | D30: 8 | F30: 430 | G30: 0.1666666667 | H30: 5
A31: 2017-08-18 | B31: Marocaz,Rochefort,Manettaz, roche du Guet, X , La thuile, Ret | D31: 11.3 | F31: 871 | G31: 0.2083333333 | H31: 6
A32: 2017-09-15 | B32: La Feclaz (1°) , La croix du Nivollet, X , Belvedere du Revard ,Clafoutis | D32: 10 | F32: 412 | G32: 0.1597222222 | H32: 8
A33: 2017-09-18 | B33: les Drouilly, Myans, Chacuzard, Poisy, Crincaillé | D33: 9.4 | F33: 74 | G33: 0.09861111111 | H33: 7
A34: 2017-09-22 | B34: Château Richard, x , Croix du Signal , Ret. | D34: 11 | F34: 561 | G34: 0.2083333333 | H34: 7
A35: 2017-09-25 | B35: Lac St André, Lachat, ret. Par la Chevre | D35: 10 | F35: 292 | G35: 0.125 | H35: 7
A36: 2017-09-29 | B36: Cimetiere, Croix Verpi, St André, Les fromagets Lac St André | D36: 11.8 | F36: 100 | G36: 0.1458333333 | H36: 3
A37: 2017-10-02 | B37: St André, Rte de Bellecombe, Chataigne, Lachat, Lac Froment | D37: 8 | F37: 230 | G37: 0.125 | H37: 3
A38: 2017-10-06 | B38: Barby, Bellevarde,Fées, Rousset, Mt St Michel,x,Stele du maquis, Ret. | D38: 12.5 | F38: 913 | G38: 5h30 | H38: 3
A39: 2017-10-09 | B39: La Foret, Murs, Bisplaine, le Lac, Crinquaillé | D39: 11.2 | F39: 58 | G39: 0.125 | H39: 10
A40: 2017-10-13 | B40: Le Monal, Barrage du Clou, X , Mélèzes, le Monal | D40: 11 | F40: 548 | G40: 0.2083333333 | H40: 6
A41: 2017-10-20 | B41: Montée et Descente le long du funiculaire de St Hilaire | D41: 5.6 | F41: 800 | G41: 0.1666666667 | H41: 6
A42: 2017-10-23 | B42: SuperU, le Vivier, Mont Ronjou, St Anthelme, Ret. | D42: 11.4 | F42: 265 | G42: 0.1333333333 | H42: 3
A43: Dernière
A53: Nombre de Randonnées | C53: =COUNTA(B4:B51) -> 39 | D53: Dont: | F53: =NbCoulParCouleur(B4:B68,4) ->  | G53: en Raquettes | I53: Moyenne générale
A54: Le Plus | C54: =MAX(D4:D51) -> 13.8 | E54: =MAX(F4:F51) -> 913 | G54: =MAX(G4:G51) -> 0.2604166667 | H54: =MAX(H4:H51) -> 10 | I54: =C57/G57/24 -> 2.97810219
A55: Le Moins | C55: =MIN(D4:D51) -> 2.5 | E55: =MIN(F4:F51) -> 25 | G55: =MIN(G4:G51) -> 0.03472222222 | H55: =MIN(H4:H51) -> 2
A56: Moyenne | C56: =AVERAGE(D4:D51) -> 9.241025641 | E56: =AVERAGE(F4:F51) -> 302.3076923 | G56: =AVERAGE(G4:G51) -> 0.1326937135 | H56: =AVERAGE(H4:H51) -> 6.128205128 | I56: =SUM(H4:H51) -> 239
A57: Cumul | C57: =SUM(D4:D51) -> 360.4 | E57: =SUM(F4:F51) -> 11790 | G57: =SUM(G4:G51) -> 5.042361111
A58: Bernard Heck bheck@live.fr 06 41 32 09 56 | C58: Nombre de Restaurant | F58: =NbCoulParCouleur(B4:B51,33) ->  | G58: Nombre de Pique Nique | J58: =NbCoulParCouleur(B4:B68,5) -> 

Sheet Michel P
A1: Randonnées Michel P. Année 2017
A2: Date | B2: Randonnée | D2: Distance | F2: Dénivelé + | G2: Durée | H2: Participant | J2: Météo
A4: 2017-03-03 | B4: La Foret, Murs,La Corne, Cugnet, Drouilly | D4: 11.1 | F4: 107 | G4: 0.125 | H4: 10
A5: 2017-03-13 | B5: Depart Super U Pontcharra Tour des Lones | D5: 9.5 | F5: 28 | G5: 0.125 | H5: 8
A6: 2017-03-17 | B6: Les Marches , Chignin Gare,Chacusart , lac des Peres,Ret. | D6: 10.5 | F6: 178 | G6: 0.125 | H6: 8
A7: 2017-03-20 | B7: St André, La Palud, Lachat, St André | D7: 7.6 | F7: 186 | G7: 0.1215277778 | H7: 7
A8: 2017-03-27 | B8: La Foret, Le golf, Chignin, Belissay , ZA | D8: 11.7 | F8: 78 | G8: 0.1270833333 | H8: 8
A9: 2017-03-31 | B9: Seloge Myans, lac des Pères, Pierre hachée, Les Fromagets, | D9: 9.6 | F9: 104 | G9: 0.125 | H9: 7
A10: 2017-04-21 | B10: Super U Francin, Tormery, Le Villard, Tormery, Ret. | D10: 8.1 | F10: 178 | G10: 0.1131944444 | H10: 8
A11: Dernière
A52: Nombre de Randonnées | C52: =COUNTA(B4:B50) -> 7 | D52: Dont: | F52: =NbCoulParCouleur(A4:A50,4) ->  | G52: en Raquettes | I52: Moyenne générale
A53: Le Plus | C53: =MAX(D4:D50) -> 11.7 | E53: =MAX(F4:F50) -> 186 | G53: =MAX(G4:G50) -> 0.1270833333 | H53: =MAX(H4:H50) -> 10 | I53: =C56/G56/24 -> 3.292506044
A54: Le Moins | C54: =MIN(D4:D50) -> 7.6 | E54: =MIN(F4:F50) -> 28 | G54: =MIN(G4:G50) -> 0.1131944444 | H54: =MIN(H4:H50) -> 7
A55: Moyenne | C55: =AVERAGE(D4:D50) -> 9.728571429 | E55: =AVERAGE(F4:F50) -> 122.7142857 | G55: =AVERAGE(G4:G50) -> 0.1231150794 | H55: =AVERAGE(H4:H50) -> 8 | I55: =SUM(H4:H50) -> 56
A56: Cumul | C56: =SUM(D4:D50) -> 68.1 | E56: =SUM(F4:F50) -> 859 | G56: =SUM(G4:G50) -> 0.8618055556
A57: Bernard Heck bheck@live.fr 06 41 32 09 56 | C57: Nombre de Restaurant | F57: =NbCoulParCouleur(B4:B50,33) ->  | G57: Nombre de Pique Nique | J57: =NbCoulParCouleur(B4:B50,5) -> 

Sheet Monique
A1: Randonnées Monique Année 2017
A2: Date | B2: Randonnée | D2: Distance | F2: Dénivelé + | G2: Durée | H2: Participant | J2: Météo
A4: 2017-02-24 | B4: chemin des abymes, Myans, chocolaterie Eden, guimauve | D4: 8.3 | F4: 100 | G4: 0.1041666667 | H4: 4
A5: 2017-03-03 | B5: La Foret, Murs,La Corne, Cugnet, Drouilly | D5: 11.1 | F5: 107 | G5: 0.125 | H5: 10
A6: 2017-03-13 | B6: Depart Super U Pontcharra Tour des Lones | D6: 9.5 | F6: 28 | G6: 0.125 | H6: 8
A7: 2017-05-05 | B7: X, Tour du lac de Ste Helene | D7: 3.6 | F7: 20 | G7: 0.05208333333 | H7: 6
A8: Dernière
A55: Nombre de Randonnées | C55: =COUNTA(B4:B53) -> 4 | D55: Dont: | F55: =NbCoulParCouleur(B4:B70,4) ->  | G55: en Raquettes | I55: Moyenne générale
A56: Le Plus | C56: =MAX(D4:D53) -> 11.1 | E56: =MAX(F4:F53) -> 107 | G56: =MAX(G4:G53) -> 0.125 | H56: =MAX(H4:H53) -> 10 | I56: =C59/G59/24 -> 3.333333333
A57: Le Moins | C57: =MIN(D4:D53) -> 3.6 | E57: =MIN(F4:F53) -> 20 | G57: =MIN(G4:G53) -> 0.05208333333 | H57: =MIN(H4:H53) -> 4
A58: Moyenne | C58: =AVERAGE(D4:D53) -> 8.125 | E58: =AVERAGE(F4:F53) -> 63.75 | G58: =AVERAGE(G4:G53) -> 0.1015625 | H58: =AVERAGE(H4:H53) -> 7 | I58: =SUM(H4:H53) -> 28
A59: Cumul | C59: =SUM(D4:D53) -> 32.5 | E59: =SUM(F4:F53) -> 255 | G59: =SUM(G4:G53) -> 0.40625
A60: Bernard Heck bheck@live.fr 06 41 32 09 56 | C60: Nombre de Restaurant | F60: =NbCoulParCouleur(B4:B53,33) ->  | G60: Nombre de Pique Nique | J60: =NbCoulParCouleur(B4:B70,5) -> 

Sheet Yolande
A1: Randonnées Yolande Année 2017
A2: Date | B2: Randonnée | D2: Distance | F2: Dénivelé + | G2: Durée | H2: Participant | J2: Météo
A4: 2017-01-27 | B4: Col du Granier, Tencovaz, Col du Granier | D4: 6 | F4: 181 | G4: 0.1041666667 | H4: 5
A5: 2017-02-02 | B5: La coche, Direction Col du Granier, Piste de ski du Granier, La coche | D5: 5.8 | F5: 280 | G5: 0.1076388889 | H5: 3
A6: 2017-02-06 | B6: La corne, Blardet Lac des peres, Les Pélerins , Les Drouilly | D6: 9.7 | F6: 65 | G6: 0.1076388889 | H6: 6
A7: 2017-02-10 | B7: Col du Granier, Tencovaz, Col du Granier ,"superbe" | D7: 6.1 | F7: 192 | G7: 0.1076388889 | H7: 3
A8: 2017-02-13 | B8: Les déserts d'Entremonts , Col du Mollard | D8: 6 | F8: 305 | G8: 0.1041666667 | H8: 5
A9: 2017-02-17 | B9: Les deserts dEntremont le grand Carroz, Col du Mollard | D9: 6.7 | F9: 432 | G9: 0.1041666667 | H9: 5
A10: 2017-02-20 | B10: F1, sentier des hauts de Chignin par Montlevin, Retour | D10: 8.4 | F10: 423 | G10: 0.1180555556 | H10: 4
A11: 2017-02-24 | B11: chemin des abymes, Myans, chocolaterie Eden, guimauve | D11: 8.3 | F11: 100 | G11: 0.1041666667 | H11: 4
A12: 2017-02-27 | B12: Super U Francin, circuit des vignes Chignin , Retour | D12: 11 | F12: 236 | G12: 0.125 | H12: 7
A13: 2017-03-03 | B13: La Foret, Murs,La Corne, Cugnet, Drouilly | D13: 11.1 | F13: 107 | G13: 0.125 | H13: 10
A14: 2017-03-10 | B14: Les déserts d'Entremonts , Col du Mollard | D14: 6 | F14: 305 | G14: 0.1041666667 | H14: 4
A15: 2017-03-13 | B15: Depart Super U Pontcharra Tour des Lones | D15: 9.5 | F15: 28 | G15: 0.125 | H15: 8
A16: 2017-03-17 | B16: Les Marches , Chignin Gare,Chacusart , lac des Peres,Ret. | D16: 10.5 | F16: 178 | G16: 0.125 | H16: 8
A17: 2017-03-20 | B17: St André, La Palud, Lachat, St André | D17: 7.6 | F17: 186 | G17: 0.1215277778 | H17: 7
A18: 2017-03-24 | B18: Seloge, Les fontanettes, Myans, Retour idem | D18: 11 | F18: 75 | G18: 0.1354166667 | H18: 4
A19: 2017-03-27 | B19: La Foret, Le golf, Chignin, Belissay , ZA | D19: 11.7 | F19: 78 | G19: 0.1270833333 | H19: 8
A20: 2017-03-31 | B20: Seloge Myans, lac des Pères, Pierre hachée, Les Fromagets, | D20: 9.6 | F20: 104 | G20: 0.125 | H20: 7
A21: 2017-04-03 | B21: St André, Martinons, Lac Sablé, Lac Froment, Ret | D21: 9.3 | F21: 241 | G21: 0.1354166667 | H21: 7
A22: 2017-04-14 | B22: Chapa, La Fourchette, La cuiller, Les delaisses de l'isere, Ret | D22: 11.5 | F22: 328 | G22: 0.125 | H22: 8
A23: 2017-04-18 | B23: St André, La palud, Lachat, La Ratte, St André | D23: 11 | F23: 289 | G23: 0.125 | H23: 5
A24: 2017-04-21 | B24: Super U Francin, Tormery, Le Villard, Tormery, Ret. | D24: 8.1 | F24: 178 | G24: 0.1131944444 | H24: 8
A25: 2017-04-24 | B25: Le Boyat, Puygros, Le Bois, Ret. | D25: 6.7 | F25: 250 | G25: 0.08333333333 | H25: 2
A26: 2017-05-15 | B26: La Foret, Le Bon de Loge, Murs, Retour | D26: 11.7 | F26: 81 | G26: 0.1194444444 | H26: 7
A27: 2017-05-19 | B27: St André, La Palud, Pervenche, Martinon, Lachat, Froment, Ret. | D27: 8.5 | F27: 282 | G27: 0.1041666667 | H27: 3
A28: 2017-05-22 | B28: St Georges, Parcours santé Ste Marie, La Baleine, Muguet, Ret. | D28: 8.3 | F28: 167 | G28: 0.1125 | H28: 5
A29: 2017-05-29 | B29: Les Deserts, Pointe de Cochette, rocher de l'Outheran, X , Ret | D29: 6.8 | F29: 638 | G29: 0.1354166667 | H29: 4
A30: 2017-06-09 | B30: Chapa, Bellecombette, Bellecombe, Vieux clocher | D30: 8.2 | F30: 445 | G30: 0.1354166667 | H30: 6
A31: 2017-06-12 | B31: St André, La Palud, Lachat, Lac Froment, St André | D31: 7.2 | F31: 162 | G31: 0.1041666667 | H31: 7
A32: 2017-06-16 | B32: Cascades d'Alloix | D32: 5 | F32: 363 | G32: 0.09375 | H32: 8
A33: 2017-06-23 | B33: St François de Salle, Chal. de la Platte,le Creux de lachat, X, Ret | D33: 17.4 | F33: 624 | G33: 0.25 | H33: 6
A34: 2017-06-30 | B34: Apremont, cascade du pichut, Le Villard, Ret, | D34: 7.9 | F34: 227 | G34: 0.09722222222 | H34: 6
A35: 2017-07-07 | B35: Prodin, Lac des Grenouilles, Col de la Perche, Refuge Grande Mont. | D35: 13.5 | F35: 915 | G35: 0.2604166667 | H35: 4
A36: 2017-07-13 | B36: Col de St Saturnin, Pragondran, Piste d'envol x, Ret.(Vacherin) | D36: 10.5 | F36: 610 | G36: 0.21875 | H36: 6
A37: 2017-07-21 | B37: La Trinité, Col de Cochette, Tours de Montmayeur,X,Ret. (Myrtille) | D37: 10.4 | F37: 550 | G37: 0.1979166667 | H37: 6
A38: 2017-07-27 | B38: Ecole en Bauges, Col d'Orgeval, x , Patous, Ret par la piste | D38: 13.8 | F38: 900 | G38: 0.2604166667 | H38: 7
A39: 2017-08-04 | B39: Col du Granier, Pointe de la Gorgeat, Mont Joigny, X , Ret. | D39: 8 | F39: 430 | G39: 0.1666666667 | H39: 5
A40: 2017-08-18 | B40: Marocaz,Rochefort,Manettaz, roche du Guet, X , La thuile, Ret | D40: 11.3 | F40: 871 | G40: 0.2083333333 | H40: 6
A41: 2017-08-25 | B41: Pré d'Orcel, Col , croix et chalet de l'Alpe, L'Alpette, Col Belles Ombres | D41: 14.5 | F41: 890 | G41: 0.2916666667 | H41: 4
A42: 2017-09-08 | B42: Lac St Claire, Villaroux, Tour de Montmayeur, X , Résistants, Ret. | D42: 16.8 | F42: 674 | G42: 0.25 | H42: 6
A43: 2017-09-11 | B43: Lac St André, Croix de St André, "La Chevre", Lachat, Lac Froment | D43: 10.7 | F43: 310 | G43: 0.1472222222 | H43: 5
A44: 2017-09-15 | B44: La Feclaz (1°) , La croix du Nivollet, X , Belvedere du Revard ,Clafoutis | D44: 10 | F44: 412 | G44: 0.1597222222 | H44: 8
A45: 2017-09-18 | B45: les Drouilly, Myans, Chacuzard, Poisy, Crincaillé | D45: 9.4 | F45: 74 | G45: 0.09861111111 | H45: 7
A46: 2017-09-22 | B46: Château Richard, x , Croix du Signal , Ret. | D46: 11 | F46: 561 | G46: 0.2083333333 | H46: 7
A47: 2017-09-25 | B47: Lac St André, Lachat, ret. Par la Chevre | D47: 2 | F47: 10 | G47: 0.02083333333 | H47: 7
A48: 2017-10-09 | B48: La Foret, Murs, Bisplaine, le Lac, Crinquaillé | D48: 11.2 | F48: 58 | G48: 0.125 | H48: 10
A49: 2017-10-13 | B49: Le Monal, Barrage du Clou, X , Mélèzes, le Monal | D49: 11 | F49: 548 | G49: 0.2083333333 | H49: 6
A50: 2017-10-16 | B50: Chapa, la Cuiller, Chapa, Gisèle | D50: 8 | F50: 190 | G50: 0.09375 | H50: 6
A51: 2017-10-20 | B51: Montée et Descente le long du funiculaire de St Hilaire | D51: 5.6 | F51: 800 | G51: 0.1666666667 | H51: 6
A52: Dernière
A55: Nombre de Randonnées | C55: =COUNTA(B4:B53) -> 48 | D55: Dont: | F55: =NbCoulParCouleur(B4:B70,4) ->  | G55: en Raquettes | I55: Moyenne générale
A56: Le Plus | C56: =MAX(D4:D53) -> 17.4 | E56: =MAX(F4:F53) -> 915 | G56: =MAX(G4:G53) -> 0.2916666667 | H56: =MAX(H4:H53) -> 10 | I56: =C59/G59/24 -> 2.76427256
A57: Le Moins | C57: =MIN(D4:D53) -> 2 | E57: =MIN(F4:F53) -> 10 | G57: =MIN(G4:G53) -> 0.02083333333 | H57: =MIN(H4:H53) -> 2
A58: Moyenne | C58: =AVERAGE(D4:D52) -> 9.38125 | E58: =AVERAGE(F4:F53) -> 340.6875 | G58: =AVERAGE(G4:G53) -> 0.14140625 | H58: =AVERAGE(H4:H53) -> 5.958333333 | I58: =SUM(H4:H53) -> 286
A59: Cumul | C59: =SUM(D4:D52) -> 450.3 | E59: =SUM(F4:F53) -> 16353 | G59: =SUM(G4:G53) -> 6.7875
A60: Bernard Heck bheck@live.fr 06 41 32 09 56 | C60: Nombre de Restaurant | F60: =NbCoulParCouleur(B4:B53,33) ->  | G60: Nombre de Pique Nique | J60: =NbCoulParCouleur(B4:B70,5) -> 

Sheet Alix
A1: Randonnées Alix Année 2017
A2: Date | B2: Randonnée | D2: Distance | F2: Dénivelé + | G2: Durée | H2: Participant | J2: Météo
A4: 2017-10-09 | B4: La Foret, Murs, Bisplaine, le Lac, Crinquaillé | D4: 11.2 | F4: 58 | G4: 0.125 | H4: 10
A5: 2017-10-20 | B5: Montée et Descente le long du funiculaire de St Hilaire | D5: 5.6 | F5: 800 | G5: 0.1666666667 | H5: 6
A6: 2017-10-23 | B6: SuperU, le Vivier, Mont Ronjou, St Anthelme, Ret. | D6: 11.4 | F6: 265 | G6: 0.1333333333 | H6: 3
A7: Dernière
A73: Nombre de Randonnées | C73: =COUNTA(B4:B70) -> 3 | D73: Dont: | F73: =NbCoulParCouleur(B4:B70,4) ->  | G73: en Raquettes | I73: Moyenne générale
A74: Le Plus | C74: =MAX(D4:D71) -> 11.4 | E74: =MAX(F4:F71) -> 800 | G74: =MAX(G4:G71) -> 0.1666666667 | H74: =MAX(H4:H71) -> 10 | I74: =C77/G77/24 -> 2.764705882
A75: Le Moins | C75: =MIN(D4:D71) -> 5.6 | E75: =MIN(F4:F71) -> 58 | G75: =MIN(G4:G71) -> 0.125 | H75: =MIN(H4:H71) -> 3
A76: Moyenne | C76: =AVERAGE(D4:D71) -> 9.4 | E76: =AVERAGE(F4:F71) -> 374.3333333 | G76: =AVERAGE(G4:G71) -> 0.1416666667 | H76: =AVERAGE(H4:H71) -> 6.333333333 | I76: =SUM(H4:H71) -> 19
A77: Cumul | C77: =SUM(D4:D71) -> 28.2 | E77: =SUM(F4:F71) -> 1123 | G77: =SUM(G4:G71) -> 0.425
A78: Bernard Heck bheck@live.fr 06 41 32 09 56 | C78: Nombre de Restaurant | F78: =NbCoulParCouleur(B4:B53,33) ->  | G78: Nombre de Pique Nique | J78: =NbCoulParCouleur(B4:B70,5) -> 

Sheet MichelT
A1: Randonnées MichelT Année 2017
A2: Date | B2: Randonnée | D2: Distance | F2: Dénivelé + | G2: Durée | H2: Participant | J2: Météo
A4: 2017-02-17 | B4: Les deserts dEntremont le grand Carroz, Col du Mollard | D4: 6.7 | F4: 432 | G4: 0.1041666667 | H4: 5
A5: 2017-04-14 | B5: Chapa, La Fourchette, La cuiller, Les delaisses de l'isere, Ret | D5: 11.5 | F5: 328 | G5: 0.125 | H5: 8
A6: 2017-05-08 | B6: St André, Le devin, Maison en pierre, Lachat, La Palud, les Darbe | D6: 10.1 | F6: 288 | G6: 0.1284722222 | H6: 6
A7: 2017-05-22 | B7: St Georges, Parcours santé Ste Marie, La Baleine, Muguet, Ret. | D7: 8.3 | F7: 167 | G7: 0.1125 | H7: 5
A8: 2017-05-29 | B8: Les Deserts, Pointe de Cochette rocher de l'Outheran, X , Ret | D8: 6.8 | F8: 638 | G8: 0.1354166667 | H8: 4
A9: 2017-06-02 | B9: St André, Lachat, Apremont, Ret. | D9: 9 | F9: 100 | G9: 0.1145833333 | H9: 6
A10: 2017-06-05 | B10: Lac St André, Croix de St André, Lachat, La palud, Lac Froment | D10: 11.4 | F10: 290 | G10: 0.1388888889 | H10: 2
A11: 2017-06-12 | B11: St André, La Palud, Lachat, Lac Froment, St André | D11: 7.2 | F11: 162 | G11: 0.1041666667 | H11: 7
A12: 2017-06-16 | B12: Cascades d'Alloix | D12: 5 | F12: 363 | G12: 0.09375 | H12: 8
A13: 2017-06-23 | B13: St François de Salle, Chal. de la Platte,le Creux de lachat, X, Ret | D13: 17.4 | F13: 624 | G13: 0.25 | H13: 6
A14: 2017-07-27 | B14: Ecole en Bauges, Col d'Orgeval, x , Patous, Ret par la piste | D14: 13.8 | F14: 900 | G14: 0.2604166667 | H14: 7
A15: 2017-08-04 | B15: Col du Granier, Pointe de la Gorgeat, Mont Joigny, X, Ret. | D15: 8 | F15: 430 | G15: 0.1666666667 | H15: 5
A16: 2017-08-18 | B16: Marocaz,Rochefort,Manettaz, roche du Guet, X , La thuile, Ret | D16: 11.3 | F16: 871 | G16: 0.2083333333 | H16: 6
A17: 2017-09-08 | B17: Lac St Claire, Villaroux, Tour de Montmayeur, X , Résistants, Ret. | D17: 16.8 | F17: 674 | G17: 0.25 | H17: 6
A18: Dernière
A73: Nombre de Randonnées | C73: =COUNTA(B4:B70) -> 14 | D73: Dont: | F73: =NbCoulParCouleur(B4:B70,4) ->  | G73: en Raquettes | I73: Moyenne générale
A74: Le Plus | C74: =MAX(D4:D71) -> 17.4 | E74: =MAX(F4:F71) -> 900 | G74: =MAX(G4:G71) -> 0.2604166667 | H74: =MAX(H4:H71) -> 8 | I74: =C77/G77/24 -> 2.72347165
A75: Le Moins | C75: =MIN(D4:D71) -> 5 | E75: =MIN(F4:F71) -> 100 | G75: =MIN(G4:G71) -> 0.09375 | H75: =MIN(H4:H71) -> 2
A76: Moyenne | C76: =AVERAGE(D4:D71) -> 10.23571429 | E76: =AVERAGE(F4:F71) -> 447.6428571 | G76: =AVERAGE(G4:G71) -> 0.1565972222 | H76: =AVERAGE(H4:H71) -> 5.785714286 | I76: =SUM(H4:H71) -> 81
A77: Cumul | C77: =SUM(D4:D71) -> 143.3 | E77: =SUM(F4:F71) -> 6267 | G77: =SUM(G4:G71) -> 2.192361111
A78: Bernard Heck bheck@live.fr 06 41 32 09 56 | C78: Nombre de Restaurant | F78: =NbCoulParCouleur(B4:B70,33) ->  | G78: Nombre de Pique Nique | J78: =NbCoulParCouleur(B4:B70,5) -> 
